Cogmind - Beta 17 @@@ ROGUE MODE // 2026.08.05 @ 03:57:33 Player: Alicianrone Result: Heading to fleet! Performance ------------- Evolutions (9) 4500 Regions Visited (28) 5600 Robots Destroyed (505) 2525 Value Destroyed (31948) 31948 Prototype IDs (403) 8060 Alien Tech Used (14) 2800 Bonus (48166) 48166 TOTAL SCORE: 103599 Bonus ------- High Alert Combat Kills 8272 Follower Combat Kills 4016 Hunted by Unchained 500 Destroyed Unchained 1000 Delivered SUBCON Basin 2000 Registered with UFD 300 Met Optimus in HQ 500 Met Zhirov 300 Met Warlord at Base 500 MAIN.C Attacked Warlord 500 Built Enhanced Grunts 300 A7 Reached Mainframe 300 Met R17 at Cetus 500 Used Core Reset Matrix 3000 Met R17 at Research 2000 Met Sigix 2000 Destroyed MAIN.C Guards 500 Met MAIN.C 5000 Destroyed MAIN.C Shell 5000 Destroyed MAIN.C 10000 Met Architect 300 Destroyed A8 300 Destroyed A6 400 Destroyed A5 500 Win 3000 Friendly Fire -2822 Cogmind --------- Core Integrity 36/1600 Matter 400/425 Energy 453/490 System Corruption 4% Temperature Cool (6) +ITN Movement Walking (100) Location To Fleet Rendezvous Parts ------- > --- POWER (2) -------- Reinforced Quantum Reactor Zero-point Reactor > --- PROPULSION (7) --- Centrium Leg High-density Centrium Leg High-density Centrium Leg Experimental Biometal Leg Experimental Biometal Leg Experimental Biometal Leg Experimental Biometal Leg > --- UTILITY (11) ----- Desublimator Experimental Power Amplifier Huge Storage Unit Experimental Optical Array Experimental Targeting Computer Experimental Targeting Computer Experimental Targeting Computer Experimental Targeting Computer Experimental Core Analyzer Experimental Weapon Cycler Layered Medium Armor Plating > --- WEAPON (5) ------- Neutron Cannon Hypervelocity Linear Accelerator Hypervelocity Linear Accelerator Hypervelocity Linear Accelerator > --- INVENTORY (25) --- Quantum Reactor Zero-point Reactor Enhanced Flexi-carbon Leg Experimental Biometal Leg Experimental Biometal Leg Experimental Heat Sink Experimental Energy Well (600) Experimental Energy Well (600) Advanced Particle Charger Experimental Weapon Cycler Experimental Weapon Cycler Layered Medium Armor Plating Thermal Barrier Experimental EM Shield Compact HERF Cannon Peak State ------------ > --- POWER ------------ Quantum Reactor Improved Quantum Reactor > --- PROPULSION ------- Improved Thunder Leg Enhanced Biometal Leg Enhanced Biometal Leg Enhanced Biometal Leg Centrium Leg Heavy Shield Leg > --- UTILITY ---------- Experimental Cooling System Huge Storage Unit Experimental Signal Interpreter Experimental Target Analyzer Experimental Core Analyzer Experimental Core Analyzer Gun Armor Centrium Medium Armor Plating Heavy Regenerative Plating Experimental Focal Shield > --- WEAPON ----------- Sigix Sheargun Sigix Shearcannon Helical Railgun Sigix Broadsword > --- INVENTORY -------- Biometal Leg Biometal Leg Improved Thunder Leg Experimental Energy Well Experimental Cloaking Device Thermal Barrier Experimental Force Field Long-range Tractor Beam High-powered Transdimensional Reconstructor Integrity Redistributor Subatomic Replicator Sigix Sheargun Sigix Sheargun Null Cannon Advanced KE Penetrator Helical Railgun Helical Railgun Helical Railgun Helical Railgun Multirail Multirail Micro-nuke Launcher [Rating: 268] Favorites ----------- Power Improved Quantum Reactor Engine Subdweller Power Source Power Core Light Neutrino Core Reactor Improved Quantum Reactor Propulsion Enhanced Biometal Leg Treads Light Treads Leg Enhanced Biometal Leg Wheel Compact Wheel Utility Experimental Targeting Computer Device Scrap Suit Storage Huge Storage Unit Processor Experimental Targeting Computer Hackware Improved Hacking Suite Protection Enhanced Scrap Shield Artifact Phase Armor Weapon Helical Railgun Energy Gun Plasma Rifle Energy Cannon Sigix Shearcannon Ballistic Gun Helical Railgun Ballistic Cannon Mass Driver Launcher Neutron Missile Launcher Special Weapon Enhanced Flamer Impact Weapon Heavy Flail Slashing Weapon Sigix Broadsword Special Melee Weapon Datajack Build | -11 -10 -10 -8 -8 -6 -6 -6 -6 -5 -5 -5 -5 -4 -4 -4 -4 -4 -4 -4 -3 -3 -3 -3 -2 -2 -1 -1 -1 ------- Run | Yrd Mat Sub Rec Scr Fac Ext Cet Arc Fac Upp Upp War Pro Fac Was Fac Upp Upp Zhi Pro Res Qua Sec Res Tes Acc Com Ac0 Slots Evolved 18 | . . . . . 8 . . . 2 . . . . 2 . . . . . . 2 . . 2 . 2 . . Power 1 | . . . . . . . . . . . . . . . . . . . . . . . . 1 . . . . Propulsion 5 | . . . . . 2 . . . . . . . . . . . . . . . 2 . . 1 . . . . Utility 9 | . . . . . 4 . . . 2 . . . . 2 . . . . . . . . . . . 1 . . Weapon 3 | . . . . . 2 . . . . . . . . . . . . . . . . . . . . 1 . . Parts Attached 421 | 7 5 19 2 11 34 10 5 21 12 2 1 9 5 15 8 17 9 1 4 5 39 37 16 3 6 10 63 45 Power 31 | 1 . 2 . 3 4 2 1 1 . . . 1 . 1 1 2 . . . . 1 2 1 1 . 1 4 2 Engine 8 | 1 . 2 . 1 1 2 . . . . . . . . . 1 . . . . . . . . . . . . Core 4 | . . . . 2 1 . . . . . . 1 . . . . . . . . . . . . . . . . Reactor 19 | . . . . . 2 . 1 1 . . . . . 1 1 1 . . . . 1 2 1 1 . 1 4 2 Propulsion 81 | 2 2 5 . 1 5 . 2 3 . . . . . . . 4 1 . . 1 11 6 2 . 3 2 20 11 Treads 17 | . 2 1 . . . . 2 1 . . . . . . . . . . . 1 . 1 . . . . 9 . Leg 40 | . . . . . . . . . . . . . . . . . . . . . 6 5 2 . 3 2 11 11 Wheel 24 | 2 . 4 . 1 5 . . 2 . . . . . . . 4 1 . . . 5 . . . . . . . Hover . | . . . . . . . . . . . . . . . . . . . . . . . . . . . . . Flight . | . . . . . . . . . . . . . . . . . . . . . . . . . . . . . Utility 179 | 2 2 3 . 4 12 1 . 10 9 1 1 4 2 7 6 6 5 1 2 4 15 18 8 . 1 6 26 23 Device 94 | 1 . . . 1 6 . . 7 3 1 . 3 2 2 2 4 5 1 . 3 8 12 4 . 1 2 12 14 Storage 11 | 1 1 1 . 1 1 . . 1 . . . 1 . . . . . . 1 1 1 1 . . . . . . Processor 37 | . . . . 1 4 1 . 1 2 . . . . 1 1 1 . . . . 6 . 2 . . 3 9 5 Hackware 8 | . . . . . 1 . . . 3 . 1 . . 2 . . . . . . . . . . . 1 . . Protection 28 | . 1 2 . 1 . . . 1 1 . . . . 2 3 1 . . 1 . . 4 2 . . . 5 4 Artifact 1 | . . . . . . . . . . . . . . . . . . . . . . 1 . . . . . . Weapon 130 | 2 1 9 2 3 13 7 2 7 3 1 . 4 3 7 1 5 3 . 2 . 12 11 5 2 2 1 13 9 Energy Gun 25 | 2 1 1 . . . 1 1 . 1 . . . . 3 . 1 2 . 1 . 2 2 1 1 1 . 2 2 Energy Cannon 15 | . . 2 . 1 1 . . 1 . . . 1 . . . . . . . . 2 2 . . 1 . 3 1 Ballistic Gun 60 | . . 4 2 2 7 5 1 5 2 1 . . 3 3 1 2 1 . 1 . 6 1 4 1 . 1 7 . Ballistic Cannon 16 | . . . . . 3 . . 1 . . . . . . . 2 . . . . . 4 . . . . . 6 Launcher 3 | . . . . . . . . . . . . . . 1 . . . . . . 1 . . . . . 1 . Special Weapon 7 | . . 1 . . . 1 . . . . . 3 . . . . . . . . 1 1 . . . . . . Impact Weapon 2 | . . . . . 2 . . . . . . . . . . . . . . . . . . . . . . . Slashing Weapon 1 | . . . . . . . . . . . . . . . . . . . . . . 1 . . . . . . Piercing Weapon . | . . . . . . . . . . . . . . . . . . . . . . . . . . . . . Special Melee Weapon 1 | . . 1 . . . . . . . . . . . . . . . . . . . . . . . . . . Unidentified Prototypes 56 | . . . . 1 1 . 1 6 1 . . 4 . 5 1 1 . . 3 . 9 17 2 . . . 2 2 Corrupted Parts 12 | . . . . . . . 1 4 1 . . . . . 2 . . . . 1 . . 1 . . . 2 . System Corruption 30 | . . . . . . . 2 12 2 . . . . . 3 . . . . 6 . . 1 . . . 4 . Parts Lost 101 | . 1 2 1 3 11 6 . . . . . . . 5 1 10 . . . . 3 . 4 . 1 2 17 34 Power 4 | . . . . . 1 . . . . . . . . . . 1 . . . . . . . . . . . 2 Propulsion 18 | . . 1 1 2 . 2 . . . . . . . . . . . . . . . . . . . . 4 8 Utility 43 | . . 1 . . 3 1 . . . . . . . 1 . 4 . . . . 3 . 3 . 1 2 7 17 Weapon 36 | . 1 . . 1 7 3 . . . . . . . 4 1 5 . . . . . . 1 . . . 6 7 Highest Loss Streak 12 | . 1 2 1 3 4 4 . . . . . . . 2 1 6 . . . . 1 . 2 . 1 1 12 10 To Critical Strikes 7 | . . . . . . . . . . . . . . 1 . . . . . . . . . . . . . 6 Average Backups 20 | 1 6 6 26 14 14 19 24 12 30 29 29 29 30 29 30 26 28 29 30 27 24 23 21 21 22 22 20 16 Power 1 | . . . 1 . . 1 . . 1 1 1 1 1 1 1 2 3 2 2 1 . 1 1 . . . 2 2 Propulsion 2 | 1 2 1 5 3 2 2 . . 1 1 1 1 1 1 1 2 3 4 4 2 1 1 2 2 . 2 1 3 Utility 10 | . 2 3 12 6 8 13 16 7 20 19 19 20 22 21 21 17 14 13 14 12 12 12 10 8 8 7 7 7 Weapon 3 | . . 1 4 2 . 1 5 3 5 4 2 2 2 2 1 . 2 4 4 5 4 3 2 5 8 9 5 1 Tool/Special . | . . . . . . . . . . . . . . . . . . . . . . . . . . . . . Unused Backups 101 | . 1 4 3 16 3 2 7 4 2 3 1 2 . 2 2 . 2 2 1 3 9 2 1 . 2 2 15 10 Power 13 | . . . 1 1 1 2 . . . . . . . . . . . 1 . 1 2 . . . . . 2 2 Propulsion 15 | . 1 1 . 3 . . 1 1 . . . . . . . . . . . 1 1 . 1 . 1 1 . 3 Utility 45 | . . . 1 9 . . 5 3 1 3 . 2 . 2 1 . 1 . 1 . 1 1 . . 1 . 8 5 Weapon 23 | . . 3 1 2 2 . 1 . . . 1 . . . 1 . 1 1 . 1 4 . . . . . 5 . Tool/Special 5 | . . . . 1 . . . . 1 . . . . . . . . . . . 1 1 . . . 1 . . Average Slot Usage (%) 83 | . 96 85 84 95 69 74 85 75 75 76 76 73 75 74 65 66 85 89 70 89 83 78 80 79 84 87 84 90 Engine 2 | . 14 14 14 3 1 2 4 . . . . . . . . . . . . . . . . . . . . . Core 1 | . . . . 10 1 . . . . . . . 5 4 . . . . . . . . . . . . . . Reactor 3 | . . . . . 2 3 1 6 5 5 5 4 . . 5 4 5 5 5 5 4 4 4 7 8 7 7 6 Treads 5 | . 3 18 . 14 . . 12 7 . . . . . . . . . . . 3 1 . . . . . 6 . Leg 5 | . . . . . . . . . . . . . . . . . . . . . 9 15 12 15 23 23 14 27 Wheel 9 | . 24 9 27 13 9 20 13 11 10 11 11 11 11 10 10 12 21 21 21 14 6 . . . . . . . Device 10 | . 10 . . 8 7 7 6 9 7 10 11 11 16 10 6 10 17 21 20 24 17 12 14 8 8 11 12 11 Storage 6 | . 14 4 14 14 5 6 6 3 5 5 5 5 5 5 5 5 5 5 5 5 4 4 4 4 4 3 3 4 Processor 11 | . . . . 1 13 11 13 12 17 17 17 13 11 14 14 12 10 10 10 10 14 18 17 16 15 13 19 22 Protection 3 | . 3 9 . . . . . . 2 . . . . 6 5 4 5 5 5 5 4 5 5 8 8 7 2 2 Energy Gun 4 | . 24 6 14 9 . . . . . . . . . 9 5 3 6 10 2 13 9 . 1 4 1 1 4 1 Energy Cannon 2 | . . 9 . 4 1 3 . . . . . . . . . . . . . . . . 1 . 1 . 2 6 Ballistic Gun 11 | . . 10 14 8 12 6 25 22 23 23 23 15 22 9 11 9 6 10 . 5 9 9 15 11 7 13 9 . Special Weapon 1 | . . . . 6 . . . . . . . 7 . . . . . . . . . . . . . . . . Peak Build Rating 268 | 7 7 35 35 44 88 68 81 112 122 118 115 121 119 140 139 133 119 126 119 135 179 215 233 248 251 264 268 257 Average Rating 120 | 4 6 14 21 33 73 59 68 84 117 114 114 113 115 131 130 114 108 118 100 128 158 178 213 242 244 253 226 225 On Entrance 117 | . 7 7 35 21 26 67 52 81 108 117 115 114 119 115 138 125 100 118 118 119 121 171 202 224 241 239 254 249 Avg Prop Armor Cover (%) 10 | . . 13 . 12 . . 10 11 . . . . . . 1 1 . . . 8 7 . . . . . 7 . Naked Turns . | . . . . . . . . . . . . . . . . . . . . . . . . . . . . . Heaviest Build 284 | 15 32 213 213 215 239 239 234 248 256 253 247 249 245 258 284 283 277 256 256 274 145 173 170 186 191 194 212 217 Greatest Support 275 | 26 40 40 32 51 32 32 16 40 40 40 40 40 40 40 40 64 64 64 64 64 150 180 160 188 220 220 275 228 Greatest Overweight (x) 29 | . 1 21 8 8 7 14 14 29 6 6 6 6 6 6 14 14 4 3 3 4 2 1 2 . 1 . 1 1 Average Overweight (x) 2 | . . 1 7 3 4 9 14 7 6 6 6 5 6 5 7 5 3 3 3 3 . . . . . . . . Largest Inventory Capacity 35 | 8 15 35 35 35 35 35 35 35 35 35 35 35 35 35 35 35 35 35 35 35 25 25 25 25 25 25 25 25 Average Capacity 26 | 7 11 12 35 20 26 35 35 20 35 35 35 35 35 35 35 35 35 35 35 28 25 25 25 25 25 25 25 25 Most Carried 35 | 2 8 35 35 35 24 24 32 32 35 35 35 35 35 35 35 35 35 35 35 35 25 25 25 25 25 25 25 25 Average Carried 23 | 1 6 9 31 18 16 21 26 13 34 34 34 34 35 33 33 31 33 34 34 28 24 24 24 23 23 24 20 16 Final Capacity 35 | 8 15 35 35 15 35 35 35 35 35 35 35 35 35 35 35 35 35 35 35 25 25 25 25 25 25 25 25 25 Final Carried 35 | 2 8 35 34 15 20 24 32 32 34 34 34 35 35 34 33 34 35 34 35 25 25 25 24 25 25 24 24 15 Scrap Suit Usage (%) 2 | . . . . . 1 . . 34 1 1 1 . 4 7 24 53 . . . . . . . . . . . . Parts Cannibalized 2 | . . . . . . . . . 1 . . . 1 . . . . . . . . . . . . . . . Transmogrified Parts 24 | . . . . 24 . . . . . . . . . . . . . . . . . . . . . . . . Integrity Recovered 210 | . . . . 210 . . . . . . . . . . . . . . . . . . . . . . . . Class Distribution -------------------- 17% | Scavenger-Gunner 13% | Scavenger-Scrapper 12% | Mutant 10% | Hauler-Mutant 8% | Hauler-Skirmisher 7% | Alien-Gunner 6% | Subdweller-Mutant 3% | Scavenger-Executioner 3% | Hauler-Scrapper 3% | Scavenger-Tank Dominant Class ---------------- Mutant | -10/Materials Subdweller-Mutant | -10/Subcaves Hauler-Mutant | -8/Recycling Mutant | -8/Scraptown Hauler-Scrapper | -6/Factory Hauler-Scrapper | -6/Extension Scavenger-Gunner | -6/Cetus Scavenger-Tank | -6/Archives Scavenger-Scrapper | -5/Factory Scavenger-Scrapper | -5/Upper Caves Scavenger-Scrapper | -5/Upper Caves Scavenger-Scrapper | -5/Warlord Scavenger-Scrapper | -4/Proximity Caves Scavenger-Scrapper | -4/Factory Scavenger-Scrapper | -4/Waste Hauler-Scrapper | -4/Factory Hauler-Skirmisher | -4/Upper Caves Hauler-Skirmisher | -4/Upper Caves Hauler-Mutant | -4/Zhirov Trapper-Skirmisher | -3/Proximity Caves Trapper-Skirmisher | -3/Research Scavenger-Mutant | -3/Quarantine Scavenger-Executioner | -3/Section 7 Alien-Gunner | -2/Research Scavenger-Gunner | -2/Testing Alien-Gunner | -1/Access Scavenger-Gunner | -1/Command Scavenger-Gunner | -1/Access_0 Resources | -11 -10 -10 -8 -8 -6 -6 -6 -6 -5 -5 -5 -5 -4 -4 -4 -4 -4 -4 -4 -3 -3 -3 -3 -2 -2 -1 -1 -1 ----------- Run | Yrd Mat Sub Rec Scr Fac Ext Cet Arc Fac Upp Upp War Pro Fac Was Fac Upp Upp Zhi Pro Res Qua Sec Res Tes Acc Com Ac0 Matter Collected 27744 | 193 162 448 54 140 1216 641 313 1270 1345 290 293 223 394 1265 560 1487 674 129 367 345 1266 3165 2903 973 2243 1701 2638 1046 Remotely 2286 | . . . . . . . . . . . . . . . . 156 . . . . . 616 . . . 325 1189 . Salvage Created 36201 | 28 167 906 335 . 1996 671 45 966 2065 335 736 . 417 2990 1270 1460 313 204 367 206 1513 2339 2854 1643 4635 3520 2591 1629 Parts 1636 | 2 8 51 16 . 94 12 3 58 92 5 22 . 36 121 29 77 15 5 4 10 65 161 125 67 211 139 101 107 Haulers Intercepted 20 | . 1 . . . 2 . . . 3 . . . . 2 . 1 . . . . 3 2 1 1 2 2 . . Recyclers Shooed 13 | 1 . . . . 2 . . . . . . . . 2 . 5 . . . . . . . 1 . 2 . . Parts Field Recycled 43 | . . . . . . . . 43 . . . . . . . . . . . . . . . . . . . . Retrieved Matter 679 | . . . . . . . . 679 . . . . . . . . . . . . . . . . . . . . Parts Self-Destructed 122 | . . 12 . . . . . . . 8 45 . 36 . . . 6 4 2 9 . . . . . . . . Prevented 8 | . . . . . . . . . . . . . . . . . 4 4 . . . . . . . . . . Parts Restored . | . . . . . . . . . . . . . . . . . . . . . . . . . . . . . Kills | -11 -10 -10 -8 -8 -6 -6 -6 -6 -5 -5 -5 -5 -4 -4 -4 -4 -4 -4 -4 -3 -3 -3 -3 -2 -2 -1 -1 -1 ------- Run | Yrd Mat Sub Rec Scr Fac Ext Cet Arc Fac Upp Upp War Pro Fac Was Fac Upp Upp Zhi Pro Res Qua Sec Res Tes Acc Com Ac0 Combat Hostiles Destroyed 388 | . 4 20 3 . 35 7 1 4 23 1 7 . 4 38 4 20 4 3 . 3 13 26 33 13 54 27 22 19 Melee 6 | . . . . . 1 2 . . . . . . . . . . . . . . . . 1 . 2 . . . Guns 248 | . 2 11 3 . 23 2 1 . 23 1 7 . 4 29 4 14 4 3 . 1 8 7 22 13 25 27 14 . Cannons 84 | . . 7 . . 8 3 . 4 . . . . . . . . . . . . . 13 1 . 27 . 3 18 AOE 26 | . 1 . . . 2 . . . . . . . . 6 . 6 . . . 2 . 3 1 . . . 5 . Classes Destroyed 35 | 1 4 3 2 . 5 . . 1 4 . . . 2 1 1 1 1 . . 1 3 1 1 . 1 . 2 . Worker 16 | . . . . . 3 . . . 1 . . . . 1 . 4 . . . . . . 1 . 4 2 . . Builder 11 | . . . . . 1 1 . . . . . . . 3 . 2 . . . . . . . 2 2 . . . Tunneler 3 | 1 . . . . 1 . . . . . . . . 1 . . . . . . . . . . . . . . Hauler 20 | . 1 . . . 2 . . . 3 . . . . 2 . 1 . . . . 3 2 1 1 2 2 . . Recycler 10 | . . . 2 . . 1 . . . . . . . 1 . 2 . . . . . . . 1 . 3 . . Minesweeper 3 | . . . . . . . . . . . . . 1 . . . 2 . . . . . . . . . . . Mechanic 4 | . . . . . . . . . 1 . . . . 1 . . . . . . . . . . 1 1 . . Operator 13 | . . . . . 1 . . 8 . . . . . . . . . . . . 1 1 1 . . 1 . . Drone 3 | . . . . . . . . . . . . . . . . . . . . 2 . . . . . . . 1 Turret 2 | . . 2 . . . . . . . . . . . . . . . . . . . . . . . . . . Watcher 26 | . 1 . . . 1 . . . 2 . . . . 2 . 4 . . . . . 3 4 4 2 1 2 . Swarmer 43 | . 3 . . . 10 . . . 1 . 1 . . 8 . 5 . . . . . 3 . 1 4 . 7 . Cutter 3 | . . . . . . . . . . . . . . . . 3 . . . . . . . . . . . . Saboteur 3 | . . . . . . . . . 1 . . . . 1 . . . . . . . . . . 1 . . . Grunt 113 | . 1 1 . . 19 4 . . 9 1 5 . . 12 . 5 2 3 . . 7 5 7 3 12 15 2 . Brawler 19 | . . . . . . . . . 4 . . . . 2 . . . . . . . . 1 3 7 2 . . Duelist 6 | . . . . . . . . . . . . . . 1 . . . . . . . . 1 2 1 1 . . Protector 3 | . . . . . . . . . . . . . . . . . . . . . . . 1 . . 2 . . Researcher 1 | . . . . . . . . . . . . . . . . . . . . . . . . . 1 . . . Sentry 33 | . . . 3 . 3 3 . 4 3 . 1 . 1 4 . 1 1 . . . 2 . 5 2 . . . . Specialist 4 | . . . . . . . . . 1 . . . . . . . . . . . . . . . 3 . . . Hunter 24 | . . . . . 2 . . . . . . . 2 4 . 1 . . . . . . . 2 5 4 4 . Programmer 52 | . . . . . 1 . . . 4 . . . . 6 . 5 . . . . . 2 10 . 20 2 2 . Heavy 1 | . . . . . . . . . . . . . . . . . . . . . . . . . . . 1 . Behemoth 5 | . . . . . . . . . . . . . 1 . . . . . . 1 . . 1 . . 2 . . Compactor 4 | . . . . . . . . . . . . . . . 4 . . . . . . . . . . . . . Cetus Guard 1 | . . . . . . . 1 . . . . . . . . . . . . . . . . . . . . . Quarantine Guard 12 | . . . . . . . . . . . . . . . . . . . . . . 12 . . . . . . S7 Guard 1 | . . . . . . . . . . . . . . . . . . . . . . . 1 . . . . . M Guard 2 | . . . . . . . . . . . . . . . . . . . . . . . . . . . 2 . Enhanced Grunt 8 | . . . . . . . . . . . . . . . . . . . . . . . . . . . . 8 Enhanced Sentry 1 | . . . . . . . . . . . . . . . . . . . . . . . . . . . . 1 Enhanced Hunter 7 | . . . . . . . . . . . . . . . . . . . . . . . . . . . . 7 Lightning 3 | . . . . . . . . . . . . . . . . . . . . . . 3 . . . . . . Combat Programmer 2 | . . . . . . . . . . . . . . . . . . . . . . . . . . . 2 . Striker 7 | . . . . . . . . . . . . . . . . . . . . . 3 . 4 . . . . . Executioner 3 | . . . . . . . . . . . . . . . . . . . . . 1 . 2 . . . . . Fortress 1 | . . . . . . . . . . . . . . . . . . . . . . 1 . . . . . . Artisan 2 | . . 2 . . . . . . . . . . . . . . . . . . . . . . . . . . Subdweller 19 | . . 19 . . . . . . . . . . . . . . . . . . . . . . . . . . Scrapoid 5 | . . . . . . . . 5 . . . . . . . . . . . . . . . . . . . . Packrat 7 | . . . . . . . . . . 3 3 . . . . . . . . 1 . . . . . . . . Assembled 3 | . . . . . . . . . . . . . . . . . . . . . . . . . . . 3 . Thug 1 | . . . . . . 1 . . . . . . . . . . . . . . . . . . . . . . Mutant 1 | . . . . . . . . . . . . . . . . . 1 . . . . . . . . . . . Revision 1 | . . . . . . . . . . . . . . . . . . . . . 1 . . . . . . . Best Kill Streak 16 | 1 3 3 1 . 10 2 1 4 6 7 7 . 2 16 2 13 1 3 . 1 5 7 8 10 9 8 6 5 Combat Bots Only 12 | . 3 3 1 . 7 2 1 2 6 7 7 . 2 12 2 7 1 3 . 1 5 6 6 6 5 6 6 5 Max Kills in Single Turn 7 | 1 1 1 1 . 5 1 1 1 2 1 2 . 1 3 1 7 1 1 . 1 1 3 2 2 4 2 2 3 Gunslinging 2 | . . . . . . . . . 1 . 1 . . 1 . . . . . . . 1 . 1 2 . . . Exploded 5 | . 1 . . . 2 . . . . . . . . 2 . 5 . . . 1 . 3 1 . . . 2 . Melee 1 | . . . . . 1 1 . . . . . . . . . . . . . . . . 1 . 1 . . . Uniques/NPCs Destroyed 6 | . . . . . . . . . . . . . . . . . . . . . . . . . 1 . 2 3 BL-1NK (-2/Testing) MAIN.C Shell (-1/Command) MAIN.C (-1/Command) A8 (-1/Access_0) A6 (-1/Access_0) A5 (-1/Access_0) Combat | -11 -10 -10 -8 -8 -6 -6 -6 -6 -5 -5 -5 -5 -4 -4 -4 -4 -4 -4 -4 -3 -3 -3 -3 -2 -2 -1 -1 -1 -------- Run | Yrd Mat Sub Rec Scr Fac Ext Cet Arc Fac Upp Upp War Pro Fac Was Fac Upp Upp Zhi Pro Res Qua Sec Res Tes Acc Com Ac0 Hostile Shots Fired 4061 | . 32 104 12 22 244 141 9 15 83 . 13 . 70 317 3 306 20 12 . 18 133 93 278 165 466 406 521 578 Missed 1358 | . 6 35 3 6 74 44 1 5 29 . 3 . 30 89 . 100 10 2 . 7 45 46 109 52 117 138 132 275 Deflected 15 | . . . . . . . . . . . . . . . . . . . . . . . . . 5 9 1 . Hits 2703 | . 26 69 9 16 170 97 8 10 54 . 10 . 40 228 3 206 10 10 . 11 88 47 169 113 349 268 389 303 Melee 61 | . . . . . . . . . 1 . . . . . 3 8 . . . . 4 . 11 10 11 3 . 10 Projectile 2642 | . 26 69 9 16 170 97 8 10 53 . 10 . 40 228 . 198 10 10 . 11 84 47 158 103 338 265 389 293 AOE 36 | . . . . . . . . . . . . . . 1 . 5 . . . . 1 . . . 1 . 28 . Critical Strikes 180 | . 1 2 1 3 7 3 2 . 3 . . . 2 14 2 16 . . . . 4 5 13 5 29 16 21 31 Actively Blocked 4 | . . . . . . . . . . . . . . . . . . . . . . . 2 . . . . 2 Part Disruptions 22 | . . . . . . . . . . . . . . 1 . . . . . . . . . . 5 1 13 2 Damage Taken 48182 | . 320 1223 138 315 2590 1597 224 232 980 . 189 . 503 3368 143 4281 115 75 . 151 1599 778 3408 1019 2394 2062 11417 9061 Core 3324 | . 78 91 14 8 377 100 28 . 147 . 38 . 17 195 . 265 . 17 . 27 115 16 249 22 63 114 443 900 Absorbed by Shields 7112 | . . . . . . 261 12 . . . . . 179 342 . 62 34 41 . 155 13 . . 1001 2359 1659 871 123 Reduced by Siege Mode 151 | . . . . . . . . . . . . . . . . . . . . . . . . . . . 151 . Redirected to Shielding 448 | . . . . . . . . . . . . . . . . . . . . . . 31 124 . . . . 293 Ignored by Resistances 13350 | . . . . . . . . . 92 . . . . 602 . 330 68 83 . . 221 645 1161 703 3934 1624 3527 360 Regen/Repaired (Parts) 9685 | . . . . . . . . . 3 . . 24 3 . . . . . . . . 751 1554 658 2337 702 3653 . Core Remaining (%) 41 | 100 . . . 23 . . . . . . . . 73 . . . . . . 4 . . 54 . 78 . . 2 Volleys Fired 1574 | 7 27 110 12 9 100 37 15 71 60 10 10 10 19 107 23 71 24 6 21 12 46 81 125 35 168 81 131 146 Largest 6 | 2 2 2 2 1 5 3 4 4 4 4 4 1 4 4 4 4 4 4 1 4 4 4 4 4 4 4 6 5 Hottest 363 | 90 90 160 90 80 158 158 240 102 140 135 135 35 133 155 170 152 215 215 81 266 298 150 214 276 238 273 363 360 Shots Fired 4146 | 14 44 173 23 9 244 92 55 142 223 33 36 10 76 324 72 190 59 26 21 35 177 188 358 140 385 317 433 247 Gun 3457 | 14 44 105 23 7 190 34 55 119 223 33 36 1 76 320 72 183 42 26 21 33 175 117 321 140 308 317 378 44 Cannon 654 | . . 65 . . 54 56 . 23 . . . . . . . 5 14 . . . . 69 37 . 77 . 51 203 Launcher 13 | . . . . . . . . . . . . . . 3 . 2 . . . 2 1 1 . . . . 4 . Special 22 | . . 3 . 2 . 2 . . . . . 9 . 1 . . 3 . . . 1 1 . . . . . . Kinetic 2881 | . . 70 11 . 216 55 52 142 223 33 36 1 76 163 51 150 35 14 . 16 76 173 299 101 235 285 275 93 Thermal 745 | 7 26 103 12 7 28 35 3 . . . . . . 157 21 38 21 12 21 17 99 4 . . . . 13 121 Explosive 13 | . . . . . . . . . . . . . . 3 . 2 . . . 2 1 1 . . . . 4 . Electromagnetic 76 | 7 18 . . . . . . . . . . . . . . . . . . . . 9 37 . . . . 5 Slashing 412 | . . . . . . . . . . . . . . . . . . . . . . . 22 39 150 32 141 28 Robot Hit Streak 54 | 3 6 23 13 3 16 17 11 8 9 9 8 6 8 17 19 17 22 5 16 9 15 28 13 9 37 28 33 54 Robot Miss Streak 11 | 3 5 2 3 . 4 5 3 3 7 1 2 1 4 7 2 4 3 2 1 2 4 4 4 4 4 6 11 9 Penetration Max 2 | . . . . . 1 1 . 1 2 . 1 . . 2 . 2 . 1 . . 1 1 1 2 2 1 1 1 Secondary Targets 85 | . 1 1 . . 5 . 1 . 8 1 4 . . 11 1 4 . 2 . . 2 3 6 5 13 11 6 . Max Gunslinging Chain 2 | . 1 1 . . 1 . 1 . 2 1 2 . . 1 1 1 . 1 . . 1 1 1 1 2 1 1 . Shots Hit Robots 2663 | 7 23 106 16 2 163 60 41 83 100 13 20 8 43 200 60 119 37 18 19 22 108 108 209 82 303 209 291 193 Core Hits 1481 | 1 8 34 6 1 93 22 17 43 55 7 20 . 13 96 13 64 12 9 10 12 43 53 80 55 226 113 229 146 Critical Kills 94 | . . 2 . . 2 . . 6 14 . 3 . 1 2 2 6 1 . . . 1 14 4 1 2 16 3 14 Critical Parts Destroyed 103 | . . 1 . . 2 2 1 5 8 . 1 . 1 6 . 5 1 2 . . 2 13 5 3 2 12 7 24 Critical Strikes 291 | . 3 4 . . 6 2 1 11 22 . 4 . 2 19 6 14 2 4 . 2 9 34 15 4 15 32 23 57 Burn 25 | . 3 . . . . . . . . . . . . 11 2 2 . 2 . . 4 1 . . . . . . Meltdown 2 | . . 2 . . . . . . . . . . . . . . . . . . . . . . . . . . Destroy 228 | . . 2 . . 5 1 1 11 22 . 4 . 2 8 4 11 2 2 . 2 5 30 9 4 4 32 15 52 Blast 1 | . . . . . . . . . . . . . . . . 1 . . . . . . . . . . . . Corrupt 9 | . . . . . . . . . . . . . . . . . . . . . . 3 6 . . . . . Smash 2 | . . . . . 1 1 . . . . . . . . . . . . . . . . . . . . . . Sever 24 | . . . . . . . . . . . . . . . . . . . . . . . . . 11 . 8 5 Melee Attacks 76 | . . . . . 16 4 . . . . . . . . . . . . . . . . 8 5 21 22 . . Impact 20 | . . . . . 16 4 . . . . . . . . . . . . . . . . . . . . . . Slashing 56 | . . . . . . . . . . . . . . . . . . . . . . . 8 5 21 22 . . Piercing . | . . . . . . . . . . . . . . . . . . . . . . . . . . . . . Sneak Attacks 7 | . . . . . 1 3 . . . . . . . . . . . . . . . . . . 2 1 . . Combat Hostiles . | . . . . . . . . . . . . . . . . . . . . . . . . . . . . . Follow-up Attacks . | . . . . . . . . . . . . . . . . . . . . . . . . . . . . . Damage Inflicted 95774 | 103 424 2411 306 16 4967 1976 690 1596 3490 391 728 . 1073 7323 1976 4322 743 331 489 668 2788 2766 7309 3111 15009 7107 12127 11534 Guns 61989 | 103 359 1415 306 . 2661 512 690 1388 3203 391 728 . 1073 5844 1976 3459 651 331 489 473 2747 1706 5363 3111 7028 6710 8026 1246 Cannons 27136 | . . 996 . . 910 1141 . 208 . . . . . . . 83 92 . . . . 868 1552 . 7361 . 3637 10288 Explosions 4702 | . 65 . . . 968 . . . 287 . . . . 1479 . 780 . . . 195 41 192 231 . . . 464 . Melee 1884 | . . . . . 428 323 . . . . . . . . . . . . . . . . 163 . 597 373 . . Ramming 63 | . . . . 16 . . . . . . . . . . . . . . . . . . . . 23 24 . . Kinetic 49071 | . . 882 118 . 3112 837 690 1596 3203 391 728 . 1073 3215 1106 3015 409 132 . 144 883 2351 4877 1969 5074 5725 5809 1732 Thermal 17771 | 50 286 1529 188 . 459 816 . . 287 . . . . 2808 870 557 334 199 489 329 1864 11 . . . . 80 6615 Explosive 4141 | . . . . . 968 . . . . . . . . 1300 . 750 . . . 195 41 192 231 . . . 464 . Electromagnetic 2070 | 53 138 . . . . . . . . . . . . . . . . . . . . 212 1552 . . . . 115 Impact 751 | . . . . . 428 323 . . . . . . . . . . . . . . . . . . . . . . Slashing 21907 | . . . . . . . . . . . . . . . . . . . . . . . 649 1142 9912 1358 5774 3072 Piercing . | . . . . . . . . . . . . . . . . . . . . . . . . . . . . . Highest Corruption 28 | . . . . 2 . 1 3 7 5 5 7 7 . 2 16 16 7 1 1 7 3 5 4 . 14 6 28 4 Average Corruption 4 | . . . . 1 . 1 1 2 3 5 6 7 . 1 14 6 1 1 1 2 2 1 2 . 8 5 17 3 Corruption Purged 80 | . . . . . . . . 15 . . . . . . . 14 7 . . 7 . 5 . . . . 32 . Corruption Blocked . | . . . . . . . . . . . . . . . . . . . . . . . . . . . . . Effects 440 | . . . . . . 4 4 8 26 36 44 2 . 3 14 23 29 8 2 9 18 13 22 . 85 . 67 23 Message Errors 99 | . . . . . . . . 3 5 10 9 . . . 3 5 5 2 1 2 7 5 2 . 19 . 13 8 Matter Fused 107 | . . . . . . 1 . 2 5 9 14 2 . 2 8 5 9 2 1 . 5 . 7 . 19 . 12 4 Heat Flow Errors 52 | . . . . . . 3 1 1 4 6 8 . . 1 1 2 6 1 . 3 . 1 2 . 8 . 4 . Energy Discharges 41 | . . . . . . . 1 . 3 3 6 . . . . 1 2 . . 2 2 2 1 . 10 . 5 3 Parts Rejected 14 | . . . . . . . . . 2 . . . . . . 1 . 1 . . . . . . 3 . 5 2 Parts Fused 5 | . . . . . . . 1 . . . 1 . . . . . 1 . . . . . . . 1 . 1 . Data Loss (minor) 41 | . . . . . . . . 1 2 5 4 . . . . 3 3 . . . 1 1 4 . 11 . 5 1 Data Loss (major) 17 | . . . . . . . 1 1 . . 2 . . . 1 1 1 . . 1 . 3 . . 2 . 1 3 Misfires 21 | . . . . . . . . . 2 2 . . . . . 3 . 2 . . . 1 2 . 3 . 5 1 Alerts 15 | . . . . . . . . . 1 1 . . . . 1 . 2 . . . 3 . 1 . 5 . 1 . Misdirections 1 | . . . . . . . . . . . . . . . . . . . . . . . . . . . 1 . Weapon Failures 27 | . . . . . . . . . 2 . . . . . . 2 . . . 1 . . 3 . 4 . 14 1 Overload Shots 37 | . . . . . . . 2 . . . . . . 10 21 4 . . . . . . . . . . . . Effects 3 | . . . . . . . . . . . . . . . 3 . . . . . . . . . . . . . Energy Bleed 1 | . . . . . . . . . . . . . . . 1 . . . . . . . . . . . . . Heat Surge 1 | . . . . . . . . . . . . . . . 1 . . . . . . . . . . . . . Short Circuit 1 | . . . . . . . . . . . . . . . 1 . . . . . . . . . . . . . Overflow Damage 1241 | . . . . . 210 253 . . 73 . . . . 83 . 164 . . . 2 . . 84 . 245 14 . 113 Projectiles 262 | . . . . . 14 50 . . . . . . . . . . . . . . . . 29 . 56 . . 113 Explosions 397 | . . . . . 61 . . . 73 . . . . 83 . 164 . . . 2 . . 14 . . . . . Melee 582 | . . . . . 135 203 . . . . . . . . . . . . . . . . 41 . 189 14 . . Knockbacks 17 | . . . . . 6 3 . . . . . . . . . 1 1 . . . . 2 . . . . . 4 Impact 3 | . . . . . 2 1 . . . . . . . . . . . . . . . . . . . . . . Kinetic 13 | . . . . . 4 1 . . . . . . . . . 1 1 . . . . 2 . . . . . 4 Secondary 1 | . . . . . . 1 . . . . . . . . . . . . . . . . . . . . . . Self-Inflicted Damage 142 | . 12 . . 8 . . . . . . . . . 32 . 90 . . . . . . . . . . . . Shots 4 | . 1 . . . . . . . . . . . . 1 . 2 . . . . . . . . . . . . Rammed 3 | . . . . 3 . . . . . . . . . . . . . . . . . . . . . . . . Targets Rammed 5 | . . . . 3 . . . . . . . . . . . . . . . . . . . . 1 1 . . Kicked 2 | . . . . . . . . . . . . . . . . . . . . . . . . . 1 1 . . Crushed . | . . . . . . . . . . . . . . . . . . . . . . . . . . . . . Highest Temperature 420 | 120 386 234 105 276 314 321 420 262 297 241 259 . 168 337 200 317 184 118 . 160 173 191 240 148 236 . 233 213 Average Temperature 77 | 74 164 68 44 108 77 115 91 47 85 69 96 . 66 82 81 38 35 25 . 61 39 35 30 22 83 . 79 72 Received Heat Transfer 5239 | . 147 282 72 225 864 265 . 45 249 . 36 . 6 598 . 558 13 22 . 8 234 304 270 133 291 146 381 90 Thermoelectric Energy+ 580 | . . . . . . . . . . . . . . . . . . . . . . . . . 113 . 343 124 Effects 12 | . 2 . . . . . 2 . . . . . . . . . . . . . . . . . 5 . 3 . Shutdowns 1 | . . . . . . . 1 . . . . . . . . . . . . . . . . . . . . . Energy Bleed 1 | . . . . . . . . . . . . . . . . . . . . . . . . . 1 . . . Interference 9 | . 2 . . . . . . . . . . . . . . . . . . . . . . . 4 . 3 . Matter Decay 1 | . . . . . . . 1 . . . . . . . . . . . . . . . . . . . . . Siege Activations 3 | . . . . . . . . . . . . . . . . . . . . . . . . . . . 3 . Total Turns 119 | . . . . . . . . . . . . . . . . . . . . . . . . . . . 119 . Longest Duration 89 | . . . . . . . . . . . . . . . . . . . . . . . . . . . 89 . Martial Activations . | . . . . . . . . . . . . . . . . . . . . . . . . . . . . . Shielding Activations 19 | . . . . . . . . . . . . . . . . . . . . . . . . . 9 7 3 . Total Turns 662 | . . . . . . . . . . . . . . . . . . . . . . . . . 456 154 52 . Longest Duration 159 | . . . . . . . . . . . . . . . . . . . . . . . . . 159 31 23 . Robots Disrupted . | . . . . . . . . . . . . . . . . . . . . . . . . . . . . . Combat Hostiles . | . . . . . . . . . . . . . . . . . . . . . . . . . . . . . Robots Corrupted 13 | . . . . . 1 1 . . . . . . . . . . . . . . . 2 8 . . . . 1 Combat Hostiles 12 | . . . . . 1 . . . . . . . . . . . . . . . . 2 8 . . . . 1 Parts Fried 31 | . 1 . . . 1 6 . . . . . . . . . . . . . . . 4 14 . . . . 5 Impact Corruptions 10 | . . . . . 4 5 . . . . . . . . . . . . . . . . . . 1 . . . Robots Melted 15 | . 1 2 . . 1 . . . . . . . . 4 . . . . . . 6 1 . . . . . . Combat Hostiles 12 | . 1 2 . . . . . . . . . . . 3 . . . . . . 5 1 . . . . . . Parts Melted 69 | . 1 7 . . 1 1 . . 1 . . . . 38 2 1 . . . 1 15 . . . 1 . . . Heat Transferred 22693 | 148 988 2019 225 . 700 1250 . . 150 . . . . 6560 1760 1330 750 650 563 637 3547 66 . . . . 74 1276 Parts Sabotaged 2 | . . . . . . . . . . . . . . . . . . . . . . . . . 2 . . . Parts Stolen . | . . . . . . . . . . . . . . . . . . . . . . . . . . . . . Parts Stripped . | . . . . . . . . . . . . . . . . . . . . . . . . . . . . . Power Chain Reactions 3 | . 1 . . . . . . . . . . . . . . 2 . . . . . . . . . . . . Alert | -11 -10 -10 -8 -8 -6 -6 -6 -6 -5 -5 -5 -5 -4 -4 -4 -4 -4 -4 -4 -3 -3 -3 -3 -2 -2 -1 -1 -1 ------- Run | Yrd Mat Sub Rec Scr Fac Ext Cet Arc Fac Upp Upp War Pro Fac Was Fac Upp Upp Zhi Pro Res Qua Sec Res Tes Acc Com Ac0 Maximum Alert Level 4 | . . . . . 2 2 2 . 3 . . . . 4 2 2 . . . . 2 2 3 3 4 4 3 . Low Security (%) 23 | 100 100 . 100 . 49 46 . 100 68 . . . . . . 6 . . . . 6 . . . . . . . Level 1 11 | . . . . . 14 45 96 . 10 . . . . 14 29 55 . . . . 5 14 20 . . . . . Level 2 27 | . . . . . 36 7 3 . 18 . . . . 8 70 37 . . . . 88 85 21 51 44 . . . Level 3 33 | . . . . . . . . . 2 . . . . 48 . . . . . . . . 57 48 46 63 100 . Level 4 3 | . . . . . . . . . . . . . . 29 . . . . . . . . . . 9 36 . . Level 5 . | . . . . . . . . . . . . . . . . . . . . . . . . . . . . . High Security . | . . . . . . . . . . . . . . . . . . . . . . . . . . . . . Max Security . | . . . . . . . . . . . . . . . . . . . . . . . . . . . . . Peak Influence 1435 | 5 79 . 43 . 565 624 419 182 906 . . . . 1435 490 591 . . . . 694 647 970 821 1305 1430 955 . Initial 921 | . . . 9 . . 259 342 111 . . . . . 300 490 245 . . . . 150 333 362 544 439 780 921 . Average 468 | . 24 . 7 . 302 246 341 47 191 . . . . 910 424 361 . . . . 544 495 687 674 770 1043 907 . Influence Increases 17404 | 5 236 105 249 . 1179 1493 342 211 1305 168 565 383 114 1849 10 746 117 93 15 40 1550 1016 1200 500 1704 1174 589 446 Destroy 0b10 Robot/C 8600 | . 80 60 60 . 760 800 220 80 540 80 340 160 80 760 . 400 60 80 . 20 660 520 640 260 1080 500 360 . Destroy 0b10 Robot/NC 635 | 5 10 . 10 . 45 35 10 40 35 . . 5 10 55 . 65 10 . 15 10 35 30 40 40 55 60 15 . Destroy Leader 1484 | . 14 . . . 166 116 10 . 108 10 20 . 20 148 . 90 . 10 . 10 148 170 138 60 138 66 42 . Allied During Kill 1272 | . . . . . 9 299 58 . 212 78 205 113 4 . . . 2 3 . . 289 . . . . . . . Trap Triggered on 0b10 60 | . . . . . . . . . . . . . . . . . . . . . . 60 . . . . . . Successful Hack 460 | . 37 . 14 . 34 19 . . 40 . . . . 36 . 13 . . . . 27 14 33 20 71 102 . . Select Force Hacks 180 | . 30 . 150 . . . . . . . . . . . . . . . . . . . . . . . . . Disable Machine 1335 | . . . 15 . 45 90 15 75 150 . . . . 135 . 60 . . . . 30 135 270 30 135 75 30 45 Anti-Garrison Action 200 | . . . . . . . . . . . . . . . . . . . . . . . . . . 200 . . Destroy Structure 2008 | . 5 . . . 30 59 29 16 220 . . . . 370 10 88 . . . . 166 72 64 75 210 96 97 401 Advance Influence 450 | . . . . . . . . . . . . . . 300 . . . . . . 150 . . . . . . . Partial Spotted 30 | . . . . . . . . . . . . . . . . . . . . . . . . 15 15 . . . Lose Combat Pursuer 690 | . 60 45 . . 90 75 . . . . . 105 . 45 . 30 45 . . . 45 15 15 . . 75 45 . Influence Decreases 17311 | 5 236 85 269 . 650 1410 676 489 403 821 730 196 385 448 1061 573 640 80 28 40 958 964 875 687 1185 1035 1071 1311 Entered New Map 5986 | . . . 11 . . 270 270 167 . 335 48 84 271 . 911 105 194 . 13 . . 259 282 425 343 521 519 958 Time Decay 8852 | 5 226 85 248 . 440 580 286 322 383 486 562 72 114 398 140 368 446 60 15 40 628 705 553 262 672 494 262 . Lost Part 925 | . 10 . 10 . 110 60 . . . . . . . 50 10 100 . . . . 30 . 40 . 10 20 170 305 Lost Ally 1098 | . . . . . 100 200 120 . 20 . 120 40 . . . . . 20 . . 300 . . . 10 . 120 48 Purge Threat 450 | . . . . . . 300 . . . . . . . . . . . . . . . . . . 150 . . . Squads Dispatched 102 | . 1 . . . 7 5 1 . 9 . 1 . . 15 . 4 . . . . 10 2 7 9 15 14 2 . Investigation 21 | . 1 . . . 3 2 1 . 3 . 1 . . . . . . . . . 8 . . 1 . 1 . . Extermination 21 | . . . . . 1 . . . 2 . . . . 2 . 2 . . . . . 1 3 1 6 2 1 . Reinforcement 30 | . . . . . 3 3 . . 2 . . . . 4 . 2 . . . . 2 1 2 2 3 5 1 . Assault 18 | . . . . . . . . . 2 . . . . 3 . . . . . . . . 2 2 3 6 . . Garrison 12 | . . . . . . . . . . . . . . 6 . . . . . . . . . 3 3 . . . Intercept . | . . . . . . . . . . . . . . . . . . . . . . . . . . . . . Searches Triggered . | . . . . . . . . . . . . . . . . . . . . . . . . . . . . . Unchained Authorized 1 | . . . . . . . . . . . . . . . . . . . . . . . . . 1 . . . Construction Impeded 4 | . . . . . . . . . 1 . . . . 1 . . . . . . . . . 1 1 . . . Haulers Reinforced 10 | . . . . . 3 . . . . . . . . 2 . 1 . . . . 2 . . 1 . 1 . . Active Scanning Responses . | . . . . . . . . . . . . . . . . . . . . . . . . . . . . . Cargo Convoy Interrupts . | . . . . . . . . . . . . . . . . . . . . . . . . . . . . . Stealth | -11 -10 -10 -8 -8 -6 -6 -6 -6 -5 -5 -5 -5 -4 -4 -4 -4 -4 -4 -4 -3 -3 -3 -3 -2 -2 -1 -1 -1 --------- Run | Yrd Mat Sub Rec Scr Fac Ext Cet Arc Fac Upp Upp War Pro Fac Was Fac Upp Upp Zhi Pro Res Qua Sec Res Tes Acc Com Ac0 Distress Signals 49 | . . . . . 3 2 2 . . . . 1 . 5 . 2 . . . . 5 1 3 2 1 1 21 . Communications Jammed . | . . . . . . . . . . . . . . . . . . . . . . . . . . . . . Distress Signals . | . . . . . . . . . . . . . . . . . . . . . . . . . . . . . Times Spotted 701 | . 11 24 1 7 46 43 11 16 30 4 15 44 5 59 6 38 8 4 . 4 47 25 40 20 70 46 30 47 Peak Tracking Total 14 | . 5 3 1 5 6 7 5 1 6 4 9 14 2 8 2 9 2 4 . 2 6 6 7 7 6 10 5 5 Tactical Retreats 34 | . 3 2 . . 4 3 . . . . . 2 . 2 . 2 2 . . . 5 1 1 . . 2 5 . ECM-based Alert Blocks 3 | . . . . . . . . . . . . . . . . . . . . . 3 . . . . . . . Traps | -11 -10 -10 -8 -8 -6 -6 -6 -6 -5 -5 -5 -5 -4 -4 -4 -4 -4 -4 -4 -3 -3 -3 -3 -2 -2 -1 -1 -1 ------- Run | Yrd Mat Sub Rec Scr Fac Ext Cet Arc Fac Upp Upp War Pro Fac Was Fac Upp Upp Zhi Pro Res Qua Sec Res Tes Acc Com Ac0 Traps Triggered 9 | . . . . . . . . . 2 . . . . 1 . . . . . . . 1 1 1 3 . . . Indirectly . | . . . . . . . . . . . . . . . . . . . . . . . . . . . . . Trap Hack Attempts 99 | . . 99 . . . . . . . . . . . . . . . . . . . . . . . . . . Triggered . | . . . . . . . . . . . . . . . . . . . . . . . . . . . . . Disarmed 1 | . . 1 . . . . . . . . . . . . . . . . . . . . . . . . . . Reprogrammed 10 | . . 10 . . . . . . . . . . . . . . . . . . . . . . . . . . Reused 12 | . . 1 . . . . . . . . . . . . . . 4 1 . . . 6 . . . . . . Traps Extracted 6 | . . . . . . . . . . . . . . . . . 6 . . . . . . . . . . . Installed 23 | . . 1 . . . . . . . . . . . . . . 13 1 . . . 8 . . . . . . Triggered 11 | . . . . . . . . . . . . . . . . . 4 1 . . . 6 . . . . . . Most Traps Carried 9 | . . 1 . . . . . . . . . . . . . . 9 9 8 8 8 8 . . . . . . Machines | -11 -10 -10 -8 -8 -6 -6 -6 -6 -5 -5 -5 -5 -4 -4 -4 -4 -4 -4 -4 -3 -3 -3 -3 -2 -2 -1 -1 -1 ---------- Run | Yrd Mat Sub Rec Scr Fac Ext Cet Arc Fac Upp Upp War Pro Fac Was Fac Upp Upp Zhi Pro Res Qua Sec Res Tes Acc Com Ac0 Machines Disabled 103 | . . 2 1 2 3 6 2 5 10 1 3 1 . 9 . 4 2 . . . 2 9 20 2 9 5 2 3 Max in Single Turn 6 | . . 1 1 1 2 1 1 1 6 1 . 1 . 3 . 1 1 . . . . 1 1 1 1 1 1 1 Garrison Access 3 | . . . . . . . . . 1 . . . . . . . . . . . . . . . 1 1 . . Energy Cycler 3 | . . . . . . 2 . . . . . . . . . . . . . . . . . . . 1 . . Machines Repaired . | . . . . . . . . . . . . . . . . . . . . . . . . . . . . . Machines Dismantled 1 | . . . . . . . . . . . . 1 . . . . . . . . . . . . . . . . Machines Sabotaged . | . . . . . . . . . . . . . . . . . . . . . . . . . . . . . Overloaded Fab Kills . | . . . . . . . . . . . . . . . . . . . . . . . . . . . . . Hacking | -11 -10 -10 -8 -8 -6 -6 -6 -6 -5 -5 -5 -5 -4 -4 -4 -4 -4 -4 -4 -3 -3 -3 -3 -2 -2 -1 -1 -1 --------- Run | Yrd Mat Sub Rec Scr Fac Ext Cet Arc Fac Upp Upp War Pro Fac Was Fac Upp Upp Zhi Pro Res Qua Sec Res Tes Acc Com Ac0 Machines Accessed 113 | . 8 4 12 2 10 7 1 . 9 1 3 1 1 3 . 3 1 3 4 . 11 5 4 2 10 6 2 . Terminals 47 | . 6 . 6 . 5 7 1 . 1 . 1 . 1 . . 2 . . . . 3 1 3 . 5 3 2 . Fabricators 9 | . . . . . . . . . 2 . . . . 1 . 1 . . . . 2 . . 1 1 1 . . Repair Stations 7 | . 1 . . . . . . . 2 . . . . 2 . . . . . . . 1 . . 1 . . . Recycling Units 16 | . 1 . 6 . 3 . . . 2 . . . . . . . . . . . 4 . . . . . . . Scanalyzers 11 | . . . . . 2 . . . 1 . . . . . . . . . . . 1 2 1 1 2 1 . . Garrison Access 5 | . . . . . . . . . 1 . . . . . . . . . . . 1 1 . . 1 1 . . Total Hacks 257 | . 25 7 31 6 18 16 3 . 18 1 9 1 1 9 . 10 1 6 15 . 22 11 9 6 18 12 2 . Successful 147 | . 14 7 15 6 7 9 . . 9 1 9 1 1 3 . 4 1 6 15 . 9 6 3 4 10 6 1 . Failed 108 | . 11 . 16 . 11 7 3 . 9 . . . . 6 . 6 . . . . 13 5 6 2 7 5 1 . Catastrophic 27 | . 2 . . . 3 1 2 . 3 . . . . . . 1 . . . . 4 2 1 1 4 2 1 . Database Lockouts 2 | . . . . . . . . . . . . . . . . . . . . . . . . . 1 1 . . Manual 101 | . 16 . 27 . 8 3 1 . 7 . . . . 1 . 9 . . . . 12 . 2 2 6 6 1 . Terminals 115 | . 19 . 16 . 12 16 3 . 2 . 3 . 1 . . 9 . . . . 7 1 7 . 11 6 2 . Fabricators 22 | . . . . . . . . . 6 . . . . 5 . 1 . . . . 4 . . 3 1 2 . . Repair Stations 19 | . 4 . . . . . . . 5 . . . . 4 . . . . . . . 4 . . 2 . . . Recycling Units 29 | . 2 . 15 . 3 . . . 2 . . . . . . . . . . . 7 . . . . . . . Scanalyzers 23 | . . . . . 3 . . . 2 . . . . . . . . . . . 3 4 2 3 3 3 . . Garrison Access 6 | . . . . . . . . . 1 . . . . . . . . . . . 1 2 . . 1 1 . . Terminal Hacks 77 | . 5 7 1 6 2 8 . . . 1 9 1 1 . . 3 1 6 15 . 1 1 2 . 4 2 1 . Record 26 | . . 4 . 5 . . . . . . 8 . 1 . . . . 4 4 . . . . . . . . . Part Schematic 3 | . . . . . . . . . . . . . . . . . . . 3 . . . . . . . . . Robot Schematic 1 | . 1 . . . . . . . . . . . . . . . . . . . . . . . . . . . Robot Analysis 5 | . . . 1 . . . . . . . . . . . . . . . 4 . . . . . . . . . Prototype ID Bank 5 | . 1 . . . . . . . . . . . . . . . . . 4 . . . . . . . . . Open Door 14 | . . 1 . . . 3 . . . 1 1 1 . . . . 1 2 . . . 1 2 . . . 1 . Open DSF 1 | . . . . . . . . . . . . . . . . . . . . . 1 . . . . . . . Branch Access Points 3 | . . . . . 1 . . . . . . . . . . 1 . . . . . . . . . 1 . . Terminal Index 2 | . . . . . . . . . . . . . . . . 1 . . . . . . . . . 1 . . Alert Level 2 | . . . . . . 1 . . . . . . . . . . . . . . . . . . 1 . . . Unreport Threat 3 | . . . . . . 2 . . . . . . . . . . . . . . . . . . 1 . . . Locate Traps 5 | . 2 . . . 1 2 . . . . . . . . . . . . . . . . . . . . . . Hauler Manifests 2 | . 1 . . . . . . . . . . . . . . 1 . . . . . . . . . . . . Proto ID Catalog 2 | . . 1 . 1 . . . . . . . . . . . . . . . . . . . . . . . . Protovariant Controls 2 | . . . . . . . . . . . . . . . . . . . . . . . . . 2 . . . Release Object 1 | . . 1 . . . . . . . . . . . . . . . . . . . . . . . . . . Fabricator Hacks 5 | . . . . . . . . . 2 . . . . 1 . . . . . . 1 . . 1 . . . . Network Status 2 | . . . . . . . . . . . . . . . . . . . . . 1 . . 1 . . . . Load Schematic 1 | . . . . . . . . . 1 . . . . . . . . . . . . . . . . . . . Build 2 | . . . . . . . . . 1 . . . . 1 . . . . . . . . . . . . . . Repair Station Hacks 7 | . 1 . . . . . . . 1 . . . . 2 . . . . . . . 2 . . 1 . . . Scan Component 5 | . . . . . . . . . 1 . . . . 2 . . . . . . . 1 . . 1 . . . Repair 1 | . . . . . . . . . . . . . . . . . . . . . . 1 . . . . . . Refit 1 | . 1 . . . . . . . . . . . . . . . . . . . . . . . . . . . Recycling Unit Hacks 4 | . . . 3 . . . . . . . . . . . . . . . . . 1 . . . . . . . Retrieve Components 4 | . . . 3 . . . . . . . . . . . . . . . . . 1 . . . . . . . Scanalyzer 10 | . . . . . 1 . . . 1 . . . . . . . . . . . 1 3 . 1 2 1 . . Insert Component 1 | . . . . . . . . . 1 . . . . . . . . . . . . . . . . . . . Retrieve Study 9 | . . . . . 1 . . . . . . . . . . . . . . . 1 3 . 1 2 1 . . Garrison Access Hacks 2 | . . . . . . . . . 1 . . . . . . . . . . . . . . . 1 . . . Seal Access 2 | . . . . . . . . . 1 . . . . . . . . . . . . . . . 1 . . . Unauthorized Hacks 42 | . 8 . 11 . 4 1 . . 4 . . . . . . 1 . . . . 5 . 1 2 2 3 . . Terminals 23 | . 7 . 6 . 1 1 . . 1 . . . . . . 1 . . . . 1 . 1 . 2 2 . . Assimilate 1 | . . . . . . . . . . . . . . . . . . . . . . . . . 1 . . . Botnet 11 | . 1 . 1 . 1 1 . . 1 . . . . . . 1 . . . . 1 . 1 . 1 2 . . Operators 1 | . 1 . . . . . . . . . . . . . . . . . . . . . . . . . . . Skim 10 | . 5 . 5 . . . . . . . . . . . . . . . . . . . . . . . . . Fabricators 3 | . . . . . . . . . 1 . . . . . . . . . . . . . . 2 . . . . Fabnet 1 | . . . . . . . . . . . . . . . . . . . . . . . . 1 . . . . Haulers 2 | . . . . . . . . . 1 . . . . . . . . . . . . . . 1 . . . . Repair Stations . | . . . . . . . . . . . . . . . . . . . . . . . . . . . . . Recycling Units 15 | . 1 . 5 . 3 . . . 2 . . . . . . . . . . . 4 . . . . . . . Recyclers 1 | . . . . . . . . . . . . . . . . . . . . . 1 . . . . . . . Tunnel 6 | . 1 . 5 . . . . . . . . . . . . . . . . . . . . . . . . . Fedlink 2 | . . . . . 2 . . . . . . . . . . . . . . . . . . . . . . . Scrapoids 6 | . . . . . 1 . . . 2 . . . . . . . . . . . 3 . . . . . . . Scanalyzers . | . . . . . . . . . . . . . . . . . . . . . . . . . . . . . Garrison Access 1 | . . . . . . . . . . . . . . . . . . . . . . . . . . 1 . . Jam 1 | . . . . . . . . . . . . . . . . . . . . . . . . . . 1 . . Data Cores Recovered 2 | . . . . . 1 1 . . . . . . . . . . . . . . . . . . . . . . Used . | . . . . . . . . . . . . . . . . . . . . . . . . . . . . . Hacking Detections 75 | . 8 . 10 . 7 4 2 . 6 . 1 . . 2 . 3 . . . . 8 4 4 2 8 5 1 . Full Trace Events 10 | . . . 2 . . 2 1 . . . 1 . . . . . . . . . 3 . . 1 . . . . Feedback Events . | . . . . . . . . . . . . . . . . . . . . . . . . . . . . . Feedback Blocked . | . . . . . . . . . . . . . . . . . . . . . . . . . . . . . Robot Schematics Acquired 3 | . 1 . . . . . . . . . . . . . . . . . . . . . . . 2 . . . Robots Built . | . . . . . . . . . . . . . . . . . . . . . . . . . . . . . Authchips . | . . . . . . . . . . . . . . . . . . . . . . . . . . . . . Time . | . . . . . . . . . . . . . . . . . . . . . . . . . . . . . Total Robot Build Rating . | . . . . . . . . . . . . . . . . . . . . . . . . . . . . . Part Schematics Acquired 56 | . . . . 7 10 7 2 1 3 2 2 12 1 1 1 1 . . 3 . . . . . 3 . . . Parts Built 3 | . . . . . . . . . 1 . . . . 2 . . . . . . . . . . . . . . Authchips 1 | . . . . . . . . . 1 . . . . . . . . . . . . . . . . . . . Time 106 | . . . . . . . . . 42 . . . . 64 . . . . . . . . . . . . . . Total Part Build Rating 20 | . . . . . . . . . 4 . . . . 16 . . . . . . . . . . . . . . Part Studies Acquired 9 | . . . . . 1 . . . . . . . . . . . . . . . 1 3 . 1 2 1 . . Parts Repaired 1 | . . . . . . . . . . . . . . . . . . . . . . 1 . . . . . . Time 68 | . . . . . . . . . . . . . . . . . . . . . . 68 . . . . . . Parts Recycled . | . . . . . . . . . . . . . . . . . . . . . . . . . . . . . Recycled Matter . | . . . . . . . . . . . . . . . . . . . . . . . . . . . . . Retrieved Matter . | . . . . . . . . . . . . . . . . . . . . . . . . . . . . . Retrieved Components 10 | . . . 9 . . . . . . . . . . . . . . . . . 1 . . . . . . . Parts Scanalyzed 1 | . . . . . . . . . 1 . . . . . . . . . . . . . . . . . . . Part Schematics Acquired . | . . . . . . . . . . . . . . . . . . . . . . . . . . . . . Parts Damaged . | . . . . . . . . . . . . . . . . . . . . . . . . . . . . . Bothacking | -11 -10 -10 -8 -8 -6 -6 -6 -6 -5 -5 -5 -5 -4 -4 -4 -4 -4 -4 -4 -3 -3 -3 -3 -2 -2 -1 -1 -1 ------------ Run | Yrd Mat Sub Rec Scr Fac Ext Cet Arc Fac Upp Upp War Pro Fac Was Fac Upp Upp Zhi Pro Res Qua Sec Res Tes Acc Com Ac0 Used RIF Installer . | . . . . . . . . . . . . . . . . . . . . . . . . . . . . . Robots Hacked 17 | . . . . 2 . . . . . . . 7 . 1 . . . . . . . . . . . 1 6 . Non-combat 1 | . . . . . . . . . . . . . . 1 . . . . . . . . . . . . . . Combat 16 | . . . . 2 . . . . . . . 7 . . . . . . . . . . . . . 1 6 . Robot Hacks Applied 10 | . . . . 2 . . . . . . . 7 . 1 . . . . . . . . . . . . . . parse_system 9 | . . . . 2 . . . . . . . 7 . . . . . . . . . . . . . . . . find_chute 1 | . . . . . . . . . . . . . . 1 . . . . . . . . . . . . . . Relay Couplers Released . | . . . . . . . . . . . . . . . . . . . . . . . . . . . . . Fabnet Peak Effective % 3 | . . . . . . . . . . . . . . . . . . . . . . . . . . 3 3 3 Autooverrided 7 | . . . . . . . . . . . . . . . . . . . . . . . . . . 1 6 . Robots Rewired 14 | . . . . . . 7 . . . . . 6 . . . . 1 . . . . . . . . . . . Allies Hacked . | . . . . . . . . . . . . . . . . . . . . . . . . . . . . . Hacks Repelled . | . . . . . . . . . . . . . . . . . . . . . . . . . . . . . Allies | -11 -10 -10 -8 -8 -6 -6 -6 -6 -5 -5 -5 -5 -4 -4 -4 -4 -4 -4 -4 -3 -3 -3 -3 -2 -2 -1 -1 -1 -------- Run | Yrd Mat Sub Rec Scr Fac Ext Cet Arc Fac Upp Upp War Pro Fac Was Fac Upp Upp Zhi Pro Res Qua Sec Res Tes Acc Com Ac0 Total Allies 80 | . . . . . 5 15 5 5 10 . 2 6 . . . . 1 . . . 15 . . . 1 1 14 . Largest Group 10 | . . . . . 5 8 6 5 10 9 8 10 6 . . . 1 1 . . 6 . . . 1 . 8 . Highest-Rated Group 639 | . . . . . 140 366 639 238 476 419 378 502 280 . . . 116 116 . . 384 . . . 10 . 209 . Highest-Rated Ally 159 | . . . . . 28 159 159 152 50 49 49 68 49 . . . 116 116 . . 67 . . . 10 . 59 . Initial UFD Resources 39 | . . . . . 23 34 34 34 38 32 32 32 35 35 35 35 35 35 35 39 39 30 30 33 33 35 35 35 Total Orders 37 | . . . . . . . . . 4 2 4 8 . . . . 10 1 . . 3 . . . . . . 5 STAY 15 | . . . . . . . . . 2 1 2 4 . . . . 5 1 . . . . . . . . . . FOLLOW 14 | . . . . . . . . . 2 1 2 4 . . . . 5 . . . . . . . . . . . EXPLORE 8 | . . . . . . . . . . . . . . . . . . . . . 3 . . . . . . 5 Ally Attacks 668 | . . . . . 42 170 51 . 28 20 53 69 18 . . . 6 4 . . 188 . . . . . 19 . Total Damage 17350 | . . . . . 610 4534 1959 . 527 516 1109 2294 539 . . . 193 89 . . 4554 . . . . . 426 . Kills 111 | . . . . . 3 39 12 . 4 4 10 11 1 . . . . 1 . . 23 . . . . . 3 . Allies Corrupted . | . . . . . . . . . . . . . . . . . . . . . . . . . . . . . Allies Melted 3 | . . . . 1 . 1 . . . . . 1 . . . . . . . . . . . . . . . . Intel | -11 -10 -10 -8 -8 -6 -6 -6 -6 -5 -5 -5 -5 -4 -4 -4 -4 -4 -4 -4 -3 -3 -3 -3 -2 -2 -1 -1 -1 ------- Run | Yrd Mat Sub Rec Scr Fac Ext Cet Arc Fac Upp Upp War Pro Fac Was Fac Upp Upp Zhi Pro Res Qua Sec Res Tes Acc Com Ac0 Active Infowar (turns) 25042 | 8 536 354 . . 711 . . . 577 1244 1667 985 499 490 . 253 2729 1237 317 723 2094 2641 1360 383 1244 805 3110 1075 Optics 1013 | . . . . . . . . . . . . . . . . . . . . . 48 . . . . . 17 948 Sensors 13268 | . . . . . . . . . . . . . . . . 228 2657 1236 317 721 1631 2641 1305 369 1242 717 204 . IFF 4308 | . . . . . . . . . 567 1244 1667 288 492 25 . 25 . . . . . . . . . . . . Terrain 1229 | . . . . . 550 . . . . . . . . . . . . . . . . . . . . . 550 129 Structural 8406 | . . . . . . . . . 10 . . . . 28 . 2 2725 1235 269 721 1405 1216 795 . . . . . Traps 156 | . . . . . 156 . . . . . . . . . . . . . . . . . . . . . . . Seismic 1361 | 8 536 354 . . 463 . . . . . . . . . . . . . . . . . . . . . . . Cloaking 7235 | . . . . . . . . . . . . 697 7 461 . . 3 . . 299 511 359 709 348 534 766 2541 . ECM 130 | . . . . . . . . . . . . . . . . . . . . . 130 . . . . . . . Robot Analysis Total 5 | . . . 1 . . . . . . . . . . . . . . . 4 . . . . . . . . . Derelict Logs Recovered 13 | . . 2 . 4 . . . . . 2 1 . 1 . . . 1 2 . . . . . . . . . . Drone Launches 14 | . . . . . . . . . . . . . . . . . . . . . 3 . . . . . . 11 Drone Recoveries 6 | . . . . . . . . . . . . . . . . . . . . . 1 . . . . . . 5 Exploration | -11 -10 -10 -8 -8 -6 -6 -6 -6 -5 -5 -5 -5 -4 -4 -4 -4 -4 -4 -4 -3 -3 -3 -3 -2 -2 -1 -1 -1 ------------- Run | Yrd Mat Sub Rec Scr Fac Ext Cet Arc Fac Upp Upp War Pro Fac Was Fac Upp Upp Zhi Pro Res Qua Sec Res Tes Acc Com Ac0 Turns Passed 52011 | 72 733 5324 1557 7026 1198 1799 622 1557 1482 1278 1668 1586 604 948 285 858 2779 1259 317 762 2168 3098 1616 560 2608 1302 5678 1267 Spaces Moved 27992 | 43 502 2629 709 2585 669 833 197 640 869 936 1208 981 371 430 121 398 1533 827 178 349 1449 2161 893 324 1179 639 3519 820 Core 3 | 3 . . . . . . . . . . . . . . . . . . . . . . . . . . . . Treads 3188 | . 15 1492 . 277 . . . . . . . . . . . . . . . . . . . . . . 1404 . Legs 9154 | . . . . . . . . . . . . . . . . . . . . . 1023 2161 893 324 1179 639 2115 820 Wheels 15647 | 40 487 1137 709 2308 669 833 197 640 869 936 1208 981 371 430 121 398 1533 827 178 349 426 . . . . . . . Hover . | . . . . . . . . . . . . . . . . . . . . . . . . . . . . . Flight . | . . . . . . . . . . . . . . . . . . . . . . . . . . . . . Fastest Speed 50 | 50 90 95 190 90 85 140 210 80 130 130 130 120 130 120 120 120 145 146 146 129 110 100 108 111 106 107 103 100 Average Speed 134 | 84 96 159 201 152 106 162 210 145 130 130 130 129 130 129 149 135 155 146 146 166 122 106 113 111 107 108 125 102 Slowest Speed 395 | 90 160 395 210 260 140 210 210 360 130 130 130 130 130 130 210 210 163 146 146 170 130 191 240 115 180 110 177 177 Overloaded Moves . | . . . . . . . . . . . . . . . . . . . . . . . . . . . . . Propulsion Burnouts . | . . . . . . . . . . . . . . . . . . . . . . . . . . . . . Robots Hopped . | . . . . . . . . . . . . . . . . . . . . . . . . . . . . . Potential Cave-ins 3 | . . . . . . . . . . . . . . . . . . . . . . . 3 . . . . . Cave-ins Triggered . | . . . . . . . . . . . . . . . . . . . . . . . . . . . . . Teleports 3 | . . . . . . . . . . . . . . . . . . . . . . . 1 . . . 1 1 Exploration Rate (%) 63 | 4 65 77 99 92 16 88 71 90 24 97 97 91 46 18 69 10 91 92 61 53 67 98 62 12 96 16 87 49 Regions Visited 28 Branch Regions 19 Pre-discovered Areas 16 | . 1 1 7 1 1 . . . . . . . 1 . . . 1 . 3 . . . . . . . . . Known Exits Taken 18 | . . 1 1 . 1 . . 1 1 1 . . 1 . . 1 1 1 1 1 1 1 1 1 1 1 . . Unknown Exits Taken 8 | 1 1 . . 1 . 1 1 . . . 1 1 . . . . . . . . . . . . . . 1 . Scrap Searched 26 | . . 8 . 3 . . . . . 3 5 . 1 . . . 3 2 . 1 . . . . . . . . Spaces Dug 143 | . . 4 . 1 8 . . 3 13 5 . 2 . 9 . 3 2 . . . 2 7 21 5 13 9 11 25 Terrain Destroyed 1298 | . 5 7 . 4 29 7 1 24 122 25 14 2 26 220 6 59 12 1 . 79 45 51 69 27 104 36 139 184 Melee 33 | . . . . . 5 . . . . . . . . . . . . . . . . . 4 5 10 9 . . Projectile 869 | . . 7 . 4 13 7 1 24 86 24 14 2 26 86 6 46 12 1 . 2 19 33 52 22 76 6 124 176 AOE 350 | . 5 . . . 11 . . . 36 . . . . 132 . 13 . . . 77 24 17 10 . . 16 9 . Terrain Rammed . | . . . . . . . . . . . . . . . . . . . . . . . . . . . . . Walls Destroyed . | . . . . . . . . . . . . . . . . . . . . . . . . . . . . . Machines Disabled . | . . . . . . . . . . . . . . . . . . . . . . . . . . . . . Actions | -11 -10 -10 -8 -8 -6 -6 -6 -6 -5 -5 -5 -5 -4 -4 -4 -4 -4 -4 -4 -3 -3 -3 -3 -2 -2 -1 -1 -1 --------- Run | Yrd Mat Sub Rec Scr Fac Ext Cet Arc Fac Upp Upp War Pro Fac Was Fac Upp Upp Zhi Pro Res Qua Sec Res Tes Acc Com Ac0 Total 39580 | 60 702 3596 818 5676 965 1199 385 1154 1092 982 1286 1286 455 638 176 574 1877 863 220 511 1735 2806 1223 425 2181 1004 4559 1132 Wait 7593 | 2 155 638 68 3023 100 223 143 335 120 23 62 213 53 20 2 28 253 18 . 101 78 302 64 36 684 200 612 37 Move 27965 | 42 501 2628 708 2585 668 832 196 639 868 935 1207 980 370 430 120 397 1532 826 177 348 1448 2160 892 323 1178 638 3518 819 Hop . | . . . . . . . . . . . . . . . . . . . . . . . . . . . . . Pick Up 522 | 2 6 39 20 24 21 8 17 55 12 4 3 12 . 16 4 16 17 3 2 12 28 33 22 4 25 14 76 27 Fast Attach 312 | 7 1 12 . 5 22 10 1 14 4 1 . 6 3 8 7 9 5 1 9 1 24 62 23 1 5 2 45 24 Attach 237 | . 1 5 1 1 13 1 2 8 3 . . 4 . 10 3 25 3 . 1 6 11 16 15 2 17 8 43 38 Detach 66 | . 2 2 . 1 5 1 . 2 1 . . . . 4 2 10 . . 1 . 2 4 3 . 2 1 14 9 Swap 402 | . 7 14 2 7 2 2 2 5 18 2 2 4 6 24 2 7 13 4 . 12 42 46 36 17 59 26 27 14 Drop 576 | . 2 34 7 19 18 7 9 25 6 7 2 17 4 19 13 11 17 4 9 19 56 94 35 2 21 11 91 17 Fire 1574 | 7 27 110 12 9 100 37 15 71 60 10 10 10 19 107 23 71 24 6 21 12 46 81 125 35 168 81 131 146 Melee 76 | . . . . . 16 4 . . . . . . . . . . . . . . . . 8 5 21 22 . . Ram 2 | . . . . 2 . . . . . . . . . . . . . . . . . . . . . . . . Kick 2 | . . . . . . . . . . . . . . . . . . . . . . . . . 1 1 . . Crush . | . . . . . . . . . . . . . . . . . . . . . . . . . . . . . Escape Stasis . | . . . . . . . . . . . . . . . . . . . . . . . . . . . . . Rewire 107 | . . . . . . 74 . . . . . 31 . . . . . . . . . . . . . . 2 . Trap 122 | . . 100 . . . . . . . . . . . . . . 13 1 . . . 8 . . . . . . Miscellaneous 24 | . . 14 . . . . . . . . . 9 . . . . . . . . . . . . . . . 1 Route ------- -11/Scrapyard -10/Materials (discovered 6 exits: *Mat x3 / *Min x2 / *Sub) -10/Subcaves (discovered 4 exits: *Mat x2 / *Rec / *Scr) -8/Recycling (discovered 2 exits: *Fac / *Scr) -8/Scraptown (discovered 2 exits: *Fac x2) -6/Factory (discovered 7 exits: *Fac x3 / Low x2 / *Ext x2) -6/Extension (discovered 2 exits: *Fac / *Cet) -6/Cetus (discovered 2 exits: *Fac / [*Arc]) -6/Archives (discovered 3 exits: *Fac / [*Hub x2]) -5/Factory (discovered 2 exits: *Fac / *Upp) -5/Upper Caves -5/Upper Caves (discovered 2 exits: *Fac / *War) -5/Warlord -4/Proximity Caves -4/Factory -4/Waste -4/Factory (discovered 3 exits: *Upp x2 / Arm) -4/Upper Caves -4/Upper Caves (discovered 2 exits: *Res / *Zhi) -4/Zhirov -3/Proximity Caves -3/Research (discovered 5 exits: *Res x3 / *Qua x2) -3/Quarantine (discovered 3 exits: *Res / *Sec / *Frg) -3/Section 7 -2/Research -2/Testing -1/Access -1/Command (discovered 3 exits: [*Sur x2] / [*Ac0]) -1/Access_0 To Fleet Rendezvous History --------- Turn | Location | Event 14 | -11/Scrapyard | Discovered new exit (range 16) 73 | -11/Scrapyard | Entered Materials 74 | -10/Materials | Met a group of wandering Federalists 75 | -10/Materials | Discovered new exit (range 8) 181 | -10/Materials | Discovered new exit (range 8) 231 | -10/Materials | Discovered new exit (range 14) 305 | -10/Materials | Build established: Mutant 340 | -10/Materials | Discovered new exit (range 16) 508 | -10/Materials | Identified exit to Mines 508 | -10/Materials | Identified exit to Materials 573 | -10/Materials | Learned location of 1 exit from Materials 626 | -10/Materials | Learned location of 2 exits from Subcaves 667 | -10/Materials | Learned Storage trap positions 718 | -10/Materials | Learned location of 2 exits from Subcaves 780 | -10/Materials | Learned 2 Mines zone layouts 806 | -10/Materials | Entered Subcaves 807 | -10/Subcaves | Continued accompanying wandering Federalists (5) 807 | -10/Subcaves | Approached by a straggling Scientist 807 | -10/Subcaves | Identified exit to Materials 807 | -10/Subcaves | Identified exit to Recycling 1249 | -10/Subcaves | Visited Clippyterm 1254 | -10/Subcaves | Learned Research security intel 1401 | -10/Subcaves | Shifting Twisted Machinery released Riot Gun 1422 | -10/Subcaves | Shifting Twisted Machinery released Sub. Power Source 1490 | -10/Subcaves | Build established: Subdweller-Mutant 1757 | -10/Subcaves | Learned location of Storage (-8) 1773 | -10/Subcaves | Disturbed a concealed Subdweller 1855 | -10/Subcaves | A swath of the cavern ceiling suddenly collapsed 2167 | -10/Subcaves | Visited 4L-MR0's lab 2990 | -10/Subcaves | Learned Materials emergency access door positions 4069 | -10/Subcaves | A Subdweller sparked back to life 4069 | -10/Subcaves | A Subdweller sparked back to life 4110 | -10/Subcaves | Found Gun Armor 4174 | -10/Subcaves | Ambushed by Subdweller buried in earth 4174 | -10/Subcaves | Ambushed by Subdweller buried in earth 4503 | -10/Subcaves | Core integrity fell below 50% 4740 | -10/Subcaves | Found Prototype Device 4746 | -10/Subcaves | Found Maxwheels 5210 | -10/Subcaves | Build established: Hauler-Mutant 5829 | -10/Subcaves | Found SUBCON Basin 6130 | -10/Subcaves | Entered Recycling 6191 | -8/Recycling | Scanned before Scraplab entrance 6218 | -8/Recycling | Entered Scraplab 6910 | -8/Recycling | Discovered new exit (range 15) 7335 | -8/Recycling | Learned Factory scanalyzer intel 7394 | -8/Recycling | Learned location of Zion (-7) 7441 | -8/Recycling | Learned 12 Factory zone layouts 7480 | -8/Recycling | Learned Storage non-interactive machine intel 7509 | -8/Recycling | Learned location of 1 exit from Extension 7529 | -8/Recycling | Learned 2 Lower Caves zone layouts 7540 | -8/Recycling | Identified exit to Scraptown 7596 | -8/Recycling | Learned Factory trap positions 7639 | -8/Recycling | Learned 4 Factory zone layouts 7687 | -8/Recycling | Entered Scraptown 7924 | -8/Scraptown | Visited Awakened 7968 | -8/Scraptown | Visited Assassins FH 8233 | -8/Scraptown | Discovered new exit (range 11) 8317 | -8/Scraptown | Scanned Subdweller tech in exchange for log data 8321 | -8/Scraptown | Learned Research interactive machine intel 8323 | -8/Scraptown | Learned Factory interactive machine intel 8325 | -8/Scraptown | Learned location of 1 exit from Upper Caves 8453 | -8/Scraptown | Visited TADAMA 8466 | -8/Scraptown | Visited Symbiants 8482 | -8/Scraptown | Visited The Evicted 8596 | -8/Scraptown | Visited Supply Room 8625 | -8/Scraptown | Visited Fellowship of the Rings 8663 | -8/Scraptown | Visited UFD Registry 8663 | -8/Scraptown | Registered with UFD as "Electroslider" 8720 | -8/Scraptown | Visited Science Guys 8787 | -8/Scraptown | Visited Observation Area 8829 | -8/Scraptown | Visited Scrapoid Research Area 8902 | -8/Scraptown | Delivered Scrap Shield to a Scientist 9106 | -8/Scraptown | Visited Science Testing Area 9144 | -8/Scraptown | Received an X-ray algorithm 9153 | -8/Scraptown | Visited Supply Room 9200 | -8/Scraptown | Visited A0-MCA Data Center 9229 | -8/Scraptown | Visited Abandonware Association 9252 | -8/Scraptown | Learned abandonware demo "MELTYB.EXE" 9252 | -8/Scraptown | Learned abandonware demo "ERRANTS.EXE" 9298 | -8/Scraptown | Visited Scrapoid Pod Storage 9309 | -8/Scraptown | Found Scrapoid Pod 9350 | -8/Scraptown | Visited Curators Association 9421 | -8/Scraptown | Visited Junk Repository 9478 | -8/Scraptown | Identified Sfc. Transmogrifier 9759 | -8/Scraptown | Build established: Mutant 13872 | -8/Scraptown | Tech Extrapolator generated special schematic: Vmp. Humpback 13946 | -8/Scraptown | Given a C- rating by A0-MCA 13951 | -8/Scraptown | Found A0-MCA's Component Scanner 14227 | -8/Scraptown | Tech Extrapolator generated special schematic: Machine Rigger 14253 | -8/Scraptown | Met Optimus 14253 | -8/Scraptown | Accepted into 0bPrime 14653 | -8/Scraptown | Civil war broke out across Scraptown 14658 | -8/Scraptown | Found Vmp. Humpback 14709 | -8/Scraptown | Discovered new exit (range 4) 14713 | -8/Scraptown | Entered Factory 14713 | -6/Factory | Evolved 8 slots: Propulsion x2, Utility x4, Weapon x2 14714 | -6/Factory | Identified exit to Factory 14714 | -6/Factory | Identified exit to Lower Caves 14714 | -6/Factory | Attached Maxwheels, gained temporary slots: Weapon x2 14715 | -6/Factory | Loaded intel: 69 trap records 14716 | -6/Factory | Loaded intel: 53 interactive machine locations 14717 | -6/Factory | Loaded intel: 4 scanalyzer locations 14735 | -6/Factory | Lost 5 allies 14744 | -6/Factory | Lost 3 parts (2n1w) 14757 | -6/Factory | Loaded intel: 8 recycling unit locations 14861 | -6/Factory | Tech Extrapolator generated special schematic: Deep Structural Scanner 14952 | -6/Factory | Identified exit to Extension 15043 | -6/Factory | Scrapoids reinforcements arrived? 15095 | -6/Factory | Found Scrap Suit 15112 | -6/Factory | Lost 4 allies 15196 | -6/Factory | Found Scrap Suit 15249 | -6/Factory | Discovered exit to Factory (range 8) 15340 | -6/Factory | Learned location of Protoforge (-3) 15425 | -6/Factory | Lost 4 parts (1u3w) 15431 | -6/Factory | Destroyed 7 combat bots 15603 | -6/Factory | Core integrity fell below 50% 15660 | -6/Factory | Lost 3 parts (1u2w) 15911 | -6/Factory | Entered Extension 15926 | -6/Extension | Build established: Hauler-Scrapper 15953 | -6/Extension | Rescued a captive Derelict 15955 | -6/Extension | Rescued a captive Derelict 15963 | -6/Extension | Rescued a captive Derelict 16048 | -6/Extension | Lost 3 allies 16134 | -6/Extension | Rescued A7 16653 | -6/Extension | Disrupted transfer network 16821 | -6/Extension | Spotted B-75 Beast 16850 | -6/Extension | Allies destroyed B-75 Beast 16877 | -6/Extension | Lost 3 allies 16896 | -6/Extension | Spotted B-75 Beast 16941 | -6/Extension | Core integrity fell below 20% 16962 | -6/Extension | Lost 4 parts (1n3w) 17057 | -6/Extension | Energy Cycler disabled 17057 | -6/Extension | Rescued a captive Derelict 17058 | -6/Extension | Rescued a captive Derelict 17058 | -6/Extension | Rescued a captive Derelict 17058 | -6/Extension | Rescued a captive Derelict 17060 | -6/Extension | Rescued a captive Derelict 17061 | -6/Extension | Rescued a captive Derelict 17062 | -6/Extension | Rescued a captive Derelict 17062 | -6/Extension | Rescued a captive Derelict 17063 | -6/Extension | Rescued a captive Derelict 17065 | -6/Extension | Rescued a captive Derelict 17370 | -6/Extension | Attached CPS modules to QE-BU2(g) 17375 | -6/Extension | Attached CPS modules to A7 17390 | -6/Extension | Build established: Hauler-Mutant 17546 | -6/Extension | Discovered new exit (range 6) 17710 | -6/Extension | Entered Cetus 17710 | -6/Cetus | Accompanied by 2 allies (A7) 17715 | -6/Cetus | Acquired a Cetus Manufacturing Module code from A7 17758 | -6/Cetus | Spotted Cetus Guard 17763 | -6/Cetus | Spotted Cetus Guard 17765 | -6/Cetus | Allies destroyed Cetus Guard 17776 | -6/Cetus | Allies destroyed Cetus Guard 17883 | -6/Cetus | Started Cetus Manufacturing Module 17908 | -6/Cetus | Manufactured an Enhanced Grunt 17929 | -6/Cetus | Build established: Scavenger-Gunner 17933 | -6/Cetus | Manufactured an Enhanced Grunt 17948 | -6/Cetus | Discovered new exit (range 15) 17958 | -6/Cetus | Manufactured an Enhanced Grunt 17983 | -6/Cetus | Manufactured an Enhanced Grunt 18008 | -6/Cetus | Manufactured an Enhanced Grunt 18086 | -6/Cetus | Spotted Cetus Guard 18097 | -6/Cetus | Allies destroyed Cetus Guard 18098 | -6/Cetus | Spotted Cetus Guard 18098 | -6/Cetus | Spotted Cetus Guard 18099 | -6/Cetus | Allies destroyed Cetus Guard 18106 | -6/Cetus | Spotted Cetus Guard 18110 | -6/Cetus | Destroyed Cetus Guard 18113 | -6/Cetus | Allies destroyed Cetus Guard 18138 | -6/Cetus | Lost 5 allies 18138 | -6/Cetus | Discovered exit to Factory (range 16) 18152 | -6/Cetus | Met Revision 17 18179 | -6/Cetus | Found Prototype Device 18229 | -6/Cetus | Tech Extrapolator generated special schematic: Active Sensor Spoofer 18271 | -6/Cetus | Escorted A7 to Cetus Mainframe 18332 | -6/Cetus | Entered Archives 18332 | -6/Archives | Accompanied by 1 ally (A7) 18337 | -6/Archives | Received a hacking code to weaken MAIN.C 18466 | -6/Archives | Discovered new exit (range 16) 18507 | -6/Archives | Discovered new exit (range 15) 18581 | -6/Archives | Discovered exit to Factory (range 16) 18671 | -6/Archives | Identified Exp. Thermal Shield 19015 | -6/Archives | Build established: Scavenger-Tank 19461 | -6/Archives | Scrapoid Pod released 06A11-D (x5) 19599 | -6/Archives | Murdered 5 allies 19744 | -6/Archives | Found Scrap Suit 19760 | -6/Archives | Found Scrap Suit 19771 | -6/Archives | Found Scrap Suit 19889 | -6/Archives | Entered Factory 19889 | -5/Factory | Evolved 2 slots: Utility x2 20097 | -5/Factory | Build established: Scavenger-Scrapper 20166 | -5/Factory | Tech Extrapolator generated special schematic: Energy Deflector 20381 | -5/Factory | Fabricated Deep Structural Scanner (x1) 20504 | -5/Factory | Discovered new exit (range 15) 20526 | -5/Factory | Identified exit to Upper Caves 20953 | -5/Factory | Discovered new exit (range 16) 21020 | -5/Factory | Scrapoid reinforcements arrived 21089 | -5/Factory | First assault squad dispatched 21195 | -5/Factory | Scrapoid reinforcements arrived 21236 | -5/Factory | Found Scrap Suit 21371 | -5/Factory | Entered Upper Caves 21371 | -5/Upper Caves | Accompanied by 9 allies 21372 | -5/Upper Caves | Identified exit to Upper Caves 21373 | -5/Upper Caves | UFD Scientist delivered a prototype 21377 | -5/Upper Caves | Found Prototype Protection 21380 | -5/Upper Caves | Found Scrap Suit 21393 | -5/Upper Caves | Destroyed 7 combat bots 21790 | -5/Upper Caves | Found Alien Artifact 21861 | -5/Upper Caves | Learned Factory emergency access door positions 22183 | -5/Upper Caves | Encountered a Warlord checkpoint 22649 | -5/Upper Caves | Entered another Upper Caves area 22649 | -5/Upper Caves | Accompanied by 8 allies 22895 | -5/Upper Caves | Identified exit to Factory 22990 | -5/Upper Caves | Destroyed 7 combat bots 22991 | -5/Upper Caves | Learned Armory terminal intel 22991 | -5/Upper Caves | Learned Extension stockpile data 22991 | -5/Upper Caves | Learned 8 Research zone layouts 22999 | -5/Upper Caves | Lost 3 allies 23066 | -5/Upper Caves | Discovered new exit (range 16) 23537 | -5/Upper Caves | Learned Extension terminal intel 23537 | -5/Upper Caves | Learned Extension security intel 23538 | -5/Upper Caves | A Commander dispatched an escort 24317 | -5/Upper Caves | Entered Warlord 24317 | -5/Warlord | Accompanied by 4 allies 24363 | -5/Warlord | System corruption cleaned by Quarantine Array 24556 | -5/Warlord | Tech Extrapolator generated special schematic: Vmp. Brace Plating 24598 | -5/Warlord | Found Prototype Reactor 24605 | -5/Warlord | Found Prototype Device 24605 | -5/Warlord | Identified Thermal Barrier 24618 | -5/Warlord | Found Prototype Device 24618 | -5/Warlord | Identified Exp. Cloaking Device 24631 | -5/Warlord | Found Prototype Hackware 24999 | -5/Warlord | Visited the Vortex Lab 25011 | -5/Warlord | Found Prototype Energy Cannon 25011 | -5/Warlord | Identified Vortex Cannon 25013 | -5/Warlord | Warlord's base attacked by MAIN.C 25260 | -5/Warlord | Lost 8 allies 25272 | -5/Warlord | Warlord forces counterattacked 25394 | -5/Warlord | Lost 4 allies 25427 | -5/Warlord | Spotted Executioner 25477 | -5/Warlord | Discovered new exit (range 15) 25488 | -5/Warlord | Found Corrupted Exp. Core Analyzer 25492 | -5/Warlord | Lost 12 allies 25497 | -5/Warlord | Found Exp. Targeting Computer 25513 | -5/Warlord | Spotted B-86 Titan 25513 | -5/Warlord | Spotted Striker 25516 | -5/Warlord | Build established: Commander-Scrapper 25577 | -5/Warlord | Lost 7 allies 25645 | -5/Warlord | Lost 3 allies 25685 | -5/Warlord | Rebuked by Warlord 25688 | -5/Warlord | Warlord base infiltrated, sounded retreat 25796 | -5/Warlord | Spotted Striker 25837 | -5/Warlord | Spotted Striker 25897 | -5/Warlord | Lost 16 allies 25903 | -5/Warlord | Entered Proximity Caves 25903 | -4/Proximity Caves | Accompanied by 6 allies 25931 | -4/Proximity Caves | Build established: Scavenger-Scrapper 26027 | -4/Proximity Caves | Spotter reported a threat 26031 | -4/Proximity Caves | Tech Extrapolator generated special schematic: Heat Bomb Trap 26106 | -4/Proximity Caves | Spotted B-86 Titan 26114 | -4/Proximity Caves | Spotter reported a threat 26155 | -4/Proximity Caves | Lost 4 allies 26204 | -4/Proximity Caves | Destroyed B-86 Titan 26260 | -4/Proximity Caves | Found Scrap Suit 26325 | -4/Proximity Caves | Learned location of Armory (-4) 26364 | -4/Proximity Caves | Attracted the attention of an 0b10 checkpoint 26382 | -4/Proximity Caves | Discovered exit to Factory (range 12) 26507 | -4/Proximity Caves | Entered Factory 26507 | -4/Factory | Evolved 2 slots: Utility x2 26508 | -4/Factory | Identified exit to Upper Caves 26509 | -4/Factory | Identified Enh. Scrap Shield 26532 | -4/Factory | Identified Ghost Barrier 26599 | -4/Factory | Fabricated Adv. Force Field? 26604 | -4/Factory | Garrison activated, responded to threat 26741 | -4/Factory | Destroyed 11 combat bots 26757 | -4/Factory | First assault squad dispatched 27043 | -4/Factory | Garrison activated, responded to threat 27242 | -4/Factory | Destroyed 12 combat bots 27455 | -4/Factory | Sucked down chute 27455 | -4/Factory | Entered Waste 27470 | -4/Waste | EMP discharged 27470 | -4/Waste | System corruption reached 10% 27480 | -4/Waste | Found Prototype Device 27480 | -4/Waste | Identified Exp. Actuator Array 27487 | -4/Waste | Spotted C-40 Crusher 27505 | -4/Waste | Destroyed C-40 Crusher 27505 | -4/Waste | Spotted C-40 Crusher 27512 | -4/Waste | Destroyed C-40 Crusher 27519 | -4/Waste | Found Unknown Protection 27519 | -4/Waste | Identified Damper Plating 27536 | -4/Waste | Found Damper Plating 27537 | -4/Waste | Spotted C-40 Crusher 27547 | -4/Waste | Crushed by Compactor (0 parts destroyed, 1 dropped) 27550 | -4/Waste | Crushed by Compactor (1 part destroyed) 27553 | -4/Waste | Destroyed C-40 Crusher 27559 | -4/Waste | Spotted C-40 Crusher 27570 | -4/Waste | EMP discharged 27581 | -4/Waste | Destroyed C-40 Crusher 27592 | -4/Waste | Found Damper Plating 27662 | -4/Waste | Spotted C-40 Crusher 27670 | -4/Waste | EMP discharged 27678 | -4/Waste | Spotted C-40 Crusher 27703 | -4/Waste | Tech Extrapolator generated special schematic: Vmp. Heavy Siege Treads 27719 | -4/Waste | Discovered new exit (range 16) 27740 | -4/Waste | Entered Factory 27885 | -4/Factory | Identified exit to Armory 28027 | -4/Factory | Build established: Hauler-Scrapper 28109 | -4/Factory | Core integrity fell below 50% 28189 | -4/Factory | Lost 6 parts (1p3u2w) 28199 | -4/Factory | Destroyed 7 combat bots 28273 | -4/Factory | Core integrity fell below 20% 28319 | -4/Factory | Destroyed 7 combat bots 28319 | -4/Factory | Lost 4 parts (1u3w) 28598 | -4/Factory | Entered Upper Caves 28883 | -4/Upper Caves | Build established: Hauler-Skirmisher 30095 | -4/Upper Caves | Spotted B-86 Titan 30099 | -4/Upper Caves | Rewired B-86 Titan 30459 | -4/Upper Caves | Attacked by a delusional Derelict stockpiling parts 30685 | -4/Upper Caves | Attracted the attention of an 0b10 checkpoint 30914 | -4/Upper Caves | Discovered new exit (range 17) 31329 | -4/Upper Caves | Identified exit to Upper Caves 31377 | -4/Upper Caves | Entered another Upper Caves area 31377 | -4/Upper Caves | Accompanied by 1 ally 31617 | -4/Upper Caves | Discovered new exit (range 17) 31636 | -4/Upper Caves | Identified exit to Research 31912 | -4/Upper Caves | Entered an active Warlord outpost 31925 | -4/Upper Caves | Learned Extension security intel 31925 | -4/Upper Caves | Learned Research security intel 31925 | -4/Upper Caves | Learned Factory emergency access door positions 32529 | -4/Upper Caves | Discovered new exit (range 9) 32560 | -4/Upper Caves | Learned Research stockpile data 32634 | -4/Upper Caves | Identified exit to Zhirov 32636 | -4/Upper Caves | Entered Zhirov 32639 | -4/Zhirov | Discovered new exit (range 3) 32665 | -4/Zhirov | Met Zhirov 32697 | -4/Zhirov | Learned location of Quarantine (-3) 32697 | -4/Zhirov | Learned location of Command (-1) 32716 | -4/Zhirov | Zhirov requested help retrieving the SGEMP Prototype 32741 | -4/Zhirov | Found Alien Artifact 32741 | -4/Zhirov | Identified Integrated Dissipator 32741 | -4/Zhirov | Installed Integrated Dissipator, increased core heat dissipation (+20) 32762 | -4/Zhirov | Found Alien Artifact 32936 | -4/Zhirov | Build established: Hauler-Mutant 32952 | -4/Zhirov | Identified exit to Proximity Caves 32953 | -4/Zhirov | Entered Proximity Caves 33076 | -3/Proximity Caves | Spotted B-86 Titan 33088 | -3/Proximity Caves | Spotter reported a threat 33096 | -3/Proximity Caves | Destroyed B-86 Titan 33475 | -3/Proximity Caves | Build established: Trapper-Skirmisher 33686 | -3/Proximity Caves | Discovered exit to Research (range 13) 33715 | -3/Proximity Caves | Entered Research 33715 | -3/Research | Evolved 2 slots: Propulsion x2 33719 | -3/Research | Loaded intel: 45 interactive machine locations 33888 | -3/Research | Scrapoids reinforcements arrived? 33915 | -3/Research | Revision forces began assault on 0b10 33954 | -3/Research | Met up with Revision 17++ 33965 | -3/Research | P-80 Master assimilated allied 03R24-D 34059 | -3/Research | Spotted B-86 Titan 34075 | -3/Research | Allies destroyed B-86 Titan 34140 | -3/Research | Lost 3 allies 34305 | -3/Research | Scrapoids reinforcements arrived? 34415 | -3/Research | Research terminal network offline 34493 | -3/Research | Discovered new exit (range 6) 34513 | -3/Research | Identified exit to Quarantine 34531 | -3/Research | Lost 3 allies 34840 | -3/Research | Discovered new exit (range 16) 34878 | -3/Research | Identified exit to Research 34892 | -3/Research | Discovered exit to Research (range 16) 34923 | -3/Research | Found Prototype Launcher 34923 | -3/Research | Identified Smartbomb Launcher 34958 | -3/Research | Lost 5 allies 34977 | -3/Research | Found Prototype Processor 34977 | -3/Research | Identified Exp. Signal Interpreter 35009 | -3/Research | Spotted Striker 35011 | -3/Research | Spotted Executioner 35017 | -3/Research | Destroyed Executioner 35103 | -3/Research | Scrapoids reinforcements arrived? 35118 | -3/Research | Spotted Striker 35120 | -3/Research | Destroyed Striker 35124 | -3/Research | Spotted Executioner 35126 | -3/Research | Attached CPS modules to Executioner 35141 | -3/Research | Found Adv. Kinecellerator 35144 | -3/Research | Found Exp. Targeting Computer 35151 | -3/Research | Found Exp. Core Analyzer 35162 | -3/Research | Lost 4 allies 35184 | -3/Research | Found Exp. Core Analyzer 35350 | -3/Research | Murdered Revision 35423 | -3/Research | Build established: Scavenger-Gunner 35604 | -3/Research | Spotted Striker 35605 | -3/Research | Spotted Striker 35618 | -3/Research | Destroyed Striker 35628 | -3/Research | Destroyed Striker 35645 | -3/Research | Lost 5 allies 35814 | -3/Research | Discovered exit to Quarantine (range 16) 35849 | -3/Research | Discovered exit to Research (range 12) 35883 | -3/Research | Entered Quarantine 35970 | -3/Quarantine | Discovered exit to Research (range 11) 36037 | -3/Quarantine | Cryocooling Duct disabled 36052 | -3/Quarantine | Ambient heat levels rising (+20) 36052 | -3/Quarantine | Non-combat units ordered to evacuate 36183 | -3/Quarantine | Build established: Scavenger-Skirmisher 36439 | -3/Quarantine | Cryocooling Duct disabled 36454 | -3/Quarantine | Ambient heat levels rising (+20) 36454 | -3/Quarantine | Combat units ordered to evacuate 36554 | -3/Quarantine | Quarantine Guard activated 36607 | -3/Quarantine | Found Exp. Focal Shield 36656 | -3/Quarantine | Spotted Quarantine Guard 36657 | -3/Quarantine | Destroyed Quarantine Guard 36660 | -3/Quarantine | Spotted Quarantine Guard 36660 | -3/Quarantine | Destroyed Quarantine Guard 36737 | -3/Quarantine | Spotted Quarantine Guard 36738 | -3/Quarantine | Destroyed Quarantine Guard 36753 | -3/Quarantine | Spotted Quarantine Guard 36756 | -3/Quarantine | Destroyed Quarantine Guard 36787 | -3/Quarantine | Spotted Quarantine Guard 36792 | -3/Quarantine | Destroyed Quarantine Guard 36795 | -3/Quarantine | Spotted Quarantine Guard 36806 | -3/Quarantine | Destroyed Quarantine Guard 36831 | -3/Quarantine | Spotted Quarantine Guard 36837 | -3/Quarantine | Build established: Scavenger-Gunner 36844 | -3/Quarantine | Destroyed Quarantine Guard 36942 | -3/Quarantine | Spotted Quarantine Guard 36964 | -3/Quarantine | Destroyed Quarantine Guard 37017 | -3/Quarantine | Spotted Quarantine Guard 37021 | -3/Quarantine | Destroyed Quarantine Guard 37130 | -3/Quarantine | Found Alien Slashing Weapon 37130 | -3/Quarantine | Identified Sigix Broadsword 37335 | -3/Quarantine | Spotted Quarantine Guard 37357 | -3/Quarantine | Destroyed Quarantine Guard 37426 | -3/Quarantine | Build established: Scavenger-Mutant 37477 | -3/Quarantine | Repaired Hvy. Armored Exoskeleton+ 37681 | -3/Quarantine | Spotted Fortress 37686 | -3/Quarantine | Attached CPS modules to Fortress 37749 | -3/Quarantine | Destroyed Fortress 37780 | -3/Quarantine | Found Prototype Device 37780 | -3/Quarantine | Identified Exp. EM Shield 37792 | -3/Quarantine | Found Prototype Protection 37792 | -3/Quarantine | Identified Centrium Heavy Armor Plating 37795 | -3/Quarantine | Found Prototype Device 37795 | -3/Quarantine | Identified Exp. Force Field 37800 | -3/Quarantine | Found Thermal Barrier 38105 | -3/Quarantine | Met incapacitated Sigix Warrior 38105 | -3/Quarantine | Lockdown squad dispatched 38199 | -3/Quarantine | Spotted Lightning 38199 | -3/Quarantine | Spotted Lightning 38207 | -3/Quarantine | Spotted Lightning 38208 | -3/Quarantine | Destroyed Lightning 38226 | -3/Quarantine | Destroyed Lightning 38238 | -3/Quarantine | Destroyed Lightning 38264 | -3/Quarantine | Found Prototype Device 38264 | -3/Quarantine | Identified Exp. Phase Shifter 38272 | -3/Quarantine | Attached Gun Armor, gained temporary slots: Weapon x2 38295 | -3/Quarantine | Found Prototype Energy Cannon 38295 | -3/Quarantine | Identified EMDS 38365 | -3/Quarantine | Found Exp. EM Shield 38440 | -3/Quarantine | Identified Dimensional Node Initializer 38440 | -3/Quarantine | Initialized slip node 38468 | -3/Quarantine | Found Dimensional Node Initializer 38479 | -3/Quarantine | Found Alien Artifact 38518 | -3/Quarantine | Found Alien Artifact 38551 | -3/Quarantine | Found Alien Artifact 38551 | -3/Quarantine | Identified Phase Armor 38577 | -3/Quarantine | Build established: Scavenger-Executioner 38909 | -3/Quarantine | Discovered new exit (range 8) 38909 | -3/Quarantine | Spotted Quarantine Guard 38912 | -3/Quarantine | Destroyed Quarantine Guard 38912 | -3/Quarantine | Spotted Quarantine Guard 38920 | -3/Quarantine | Destroyed Quarantine Guard 38933 | -3/Quarantine | Discovered new exit (range 5) 38938 | -3/Quarantine | Identified exit to Protoforge 38954 | -3/Quarantine | Identified exit to Section 7 38981 | -3/Quarantine | Entered Section 7 39164 | -3/Section 7 | Found Alien Artifact 39164 | -3/Section 7 | Identified Core Reset Matrix 39164 | -3/Section 7 | Identified Hpw. Transdimensional Reconstructor 39164 | -3/Section 7 | Identified Transdimensional Reconstructor 39164 | -3/Section 7 | Identified Subatomic Replicator 39164 | -3/Section 7 | Used Core Reset Matrix 39168 | -3/Section 7 | Detected hypermatrix surge 39168 | -3/Section 7 | Sensed 22 artifacts in vicinity 39239 | -3/Section 7 | Found Integrity Redistributor 39301 | -3/Section 7 | Spotted S7 Guard 39304 | -3/Section 7 | Destroyed S7 Guard 39315 | -3/Section 7 | Found Corrupted Hvy. Regenerative Plating 39324 | -3/Section 7 | Found Integrated Thermoelectric Network 39324 | -3/Section 7 | Installed Integrated Thermoelectric Network, gained heat-energy exchange potential 39481 | -3/Section 7 | First assault squad dispatched 39491 | -3/Section 7 | Spotted B-86 Titan 39600 | -3/Section 7 | Destroyed B-86 Titan 39638 | -3/Section 7 | Discovered exit to Research (range 17) 39638 | -3/Section 7 | Spotted S7 Guard 39761 | -3/Section 7 | Initialized slip node 39889 | -3/Section 7 | Spotted Executioner 39890 | -3/Section 7 | Spotted Executioner 39892 | -3/Section 7 | Destroyed Executioner 39906 | -3/Section 7 | Destroyed Executioner 39919 | -3/Section 7 | Found Exp. Core Analyzer 39935 | -3/Section 7 | Found Adv. Kinecellerator 40004 | -3/Section 7 | Spotted Striker 40004 | -3/Section 7 | Spotted Striker 40063 | -3/Section 7 | Build established: Scavenger-Assassin 40084 | -3/Section 7 | Found Sigix Sheargun 40088 | -3/Section 7 | Found Sigix Sheargun 40090 | -3/Section 7 | Found Sigix Sheargun 40124 | -3/Section 7 | Spotted Striker 40124 | -3/Section 7 | Spotted Striker 40136 | -3/Section 7 | Destroyed Striker 40161 | -3/Section 7 | Destroyed Striker 40165 | -3/Section 7 | Destroyed Striker 40176 | -3/Section 7 | Destroyed Striker 40217 | -3/Section 7 | Found Sigix Shearcannon 40377 | -3/Section 7 | Spotted B-99 Colossus 40441 | -3/Section 7 | Build established: Scavenger-Gunner 40450 | -3/Section 7 | Found LRC Matter Compressor 40450 | -3/Section 7 | Installed LRC Matter Compressor, increased matter storage capacity (+125) 40452 | -3/Section 7 | Found LRC Inertial Stabilizer 40452 | -3/Section 7 | Installed LRC Inertial Stabilizer, increased mass support (+10) 40523 | -3/Section 7 | Found Integrity Redistributor 40523 | -3/Section 7 | Used Integrity Redistributor, redistributed integrity from core (-173) 40539 | -3/Section 7 | Found Integrity Redistributor 40541 | -3/Section 7 | Found Integrity Redistributor 40542 | -3/Section 7 | Warped through subspace to slip node 40570 | -3/Section 7 | Found Integrated Dissipator 40570 | -3/Section 7 | Installed Integrated Dissipator, increased core heat dissipation (+20) 40597 | -3/Section 7 | Entered Research 40597 | -2/Research | Evolved 2 slots: Power x1, Propulsion x1 40598 | -2/Research | Sensed 1 artifact in vicinity 40610 | -2/Research | Watched by a mysterious "MATRIX" hacker 40828 | -2/Research | Garrison activated, responded to threat 40847 | -2/Research | First assault squad dispatched 41072 | -2/Research | Discovered new exit (range 9) 41108 | -2/Research | Identified exit to Testing 41157 | -2/Research | Entered Testing 41177 | -2/Testing | Build established: Alien-Gunner 41374 | -2/Testing | Garrison activated, responded to threat 41476 | -2/Testing | Found Null Cannon 41494 | -2/Testing | Found Exp. EM Shield 41524 | -2/Testing | Central database locked down 41610 | -2/Testing | Unchained authorized (BL-1NK) 41753 | -2/Testing | Spotted Striker 41854 | -2/Testing | Build established: Scavenger-Gunner 41907 | -2/Testing | First assault squad dispatched 42058 | -2/Testing | Spotted BL-1NK 42147 | -2/Testing | Found Exp. Target Analyzer 42230 | -2/Testing | Discovered new exit (range 5) 42333 | -2/Testing | Identified exit to Access 42487 | -2/Testing | System corruption reached 10% 43195 | -2/Testing | Spotted BL-1NK 43615 | -2/Testing | Destroyed BL-1NK 43626 | -2/Testing | Used Integrity Redistributor, redistributed integrity from core (-230) 43765 | -2/Testing | Entered Access 43765 | -1/Access | Evolved 2 slots: Utility x1, Weapon x1 43825 | -1/Access | Energy Cycler disabled 43943 | -1/Access | Identified exit to Command 44015 | -1/Access | First assault squad dispatched 44020 | -1/Access | Build established: Scavenger-Skirmisher 44210 | -1/Access | Found Exp. Core Analyzer 44315 | -1/Access | Central database locked down 44545 | -1/Access | Spotted B-99 Colossus 44545 | -1/Access | Spotted B-99 Colossus 44797 | -1/Access | Destroyed B-99 Colossus 44933 | -1/Access | Destroyed B-99 Colossus 44938 | -1/Access | Found Multirail 44943 | -1/Access | Found Multirail 45067 | -1/Access | Entered Command 45219 | -1/Command | Spotted M Guard 45220 | -1/Command | Spotted Combat Programmer 45221 | -1/Command | Spotted Combat Programmer 45242 | -1/Command | Spotted M Guard 45245 | -1/Command | Destroyed Combat Programmer 45253 | -1/Command | System corruption reached 10% 45269 | -1/Command | Used Integrity Redistributor, redistributed integrity from core (-497) 45281 | -1/Command | Destroyed Combat Programmer 45291 | -1/Command | Core integrity fell below 50% 45305 | -1/Command | Destroyed M Guard 45315 | -1/Command | Destroyed M Guard 45315 | -1/Command | All MAIN.C guards destroyed 45319 | -1/Command | Build established: Alien-Gunner 45326 | -1/Command | Found Prototype Reactor 45553 | -1/Command | Met MAIN.C 45566 | -1/Command | 0b10 Conduit disabled 45634 | -1/Command | Destroyed MAIN.C Shell 45637 | -1/Command | MAIN.C activated Command garrisons 45643 | -1/Command | Lost 3 parts (2n1u) 45654 | -1/Command | Build established: Scavenger-Executioner 45688 | -1/Command | Found Centrium Heavy Armor Plating 45692 | -1/Command | Found Centrium Heavy Armor Plating 45785 | -1/Command | Destroyed MAIN.C 45806 | -1/Command | Lost 12 parts (2n6u4w) 45841 | -1/Command | Found Exp. Targeting Computer 45843 | -1/Command | Found Prototype Reactor 45851 | -1/Command | Found Thermal Barrier 45852 | -1/Command | Identified Zero-point Reactor (x2) 45852 | -1/Command | Discovered new exit (range 43) 45852 | -1/Command | Discovered new exit (range 105) 45852 | -1/Command | Extracted map data and part IDs from MAIN.C's data core 45980 | -1/Command | Build established: Scavenger-Tank 46013 | -1/Command | Found Exp. System Purifier 46310 | -1/Command | Build established: Scavenger-Gunner 46431 | -1/Command | Found Exp. Weapon Cycler 47530 | -1/Command | Found Multirail 47532 | -1/Command | Found Multirail 48426 | -1/Command | Build established: Alien-Gunner 48645 | -1/Command | Found Adv. Kinecellerator 48648 | -1/Command | Found Exp. Targeting Computer 48954 | -1/Command | Found Multirail 48965 | -1/Command | Found Multirail 48997 | -1/Command | Build established: Scavenger-Gunner 49395 | -1/Command | Found Corrupted Quantum Capacitor 49588 | -1/Command | Found Perforator 49597 | -1/Command | Found Vortex Chain Reactor 49599 | -1/Command | Found Vortex Chain Reactor 49607 | -1/Command | Found Exp. EM Shield 49609 | -1/Command | Found Exp. Targeting Computer 49671 | -1/Command | Used Subatomic Replicator to replicate Sigix Shearcannon 49943 | -1/Command | Build established: Alien-Gunner 50676 | -1/Command | Found Exp. Weapon Cycler 50709 | -1/Command | Warped through subspace to slip node 50709 | -1/Command | Discovered new exit (range 5) 50710 | -1/Command | Emitted hypermatrix ping 50715 | -1/Command | Assembled emerged from beneath the floor 50745 | -1/Command | Entered Access_0 50746 | -1/Access_0 | Sensed 3 artifacts in vicinity 50747 | -1/Access_0 | Met Architect 50757 | -1/Access_0 | Lost 6 allies 50765 | -1/Access_0 | Destroyed A8 50770 | -1/Access_0 | Architect warped through subspace 50844 | -1/Access_0 | Architect warped through subspace 50857 | -1/Access_0 | Found Prototype Device 50857 | -1/Access_0 | Identified Desublimator 50861 | -1/Access_0 | Found Exp. Targeting Computer 50917 | -1/Access_0 | Core integrity fell below 20% 50926 | -1/Access_0 | Architect warped through subspace 50939 | -1/Access_0 | Subspace Access Node disabled 50988 | -1/Access_0 | Architect warped through subspace 50996 | -1/Access_0 | Found Exp. Powered Armor 51034 | -1/Access_0 | A6 warped into view 51050 | -1/Access_0 | Destroyed A6 51070 | -1/Access_0 | Architect warped through subspace 51093 | -1/Access_0 | Lost 9 parts (1p3n4u1w) 51098 | -1/Access_0 | Found Exp. Targeting Computer 51131 | -1/Access_0 | Used Integrity Redistributor, redistributed integrity to core (+442) 51141 | -1/Access_0 | Architect warped through subspace 51193 | -1/Access_0 | Architect warped through subspace 51223 | -1/Access_0 | Architect warped through subspace 51225 | -1/Access_0 | Found Desublimator 51243 | -1/Access_0 | Lost 10 parts (1p4n4u1w) 51263 | -1/Access_0 | Found Hpw. Transdimensional Reconstructor 51281 | -1/Access_0 | Architect warped through subspace 51321 | -1/Access_0 | A5 warped into view 51331 | -1/Access_0 | Architect warped through subspace 51342 | -1/Access_0 | Destroyed A5 51370 | -1/Access_0 | Architect warped through subspace 51383 | -1/Access_0 | Found Exp. Phase Shifter 51402 | -1/Access_0 | Architect warped through subspace 51406 | -1/Access_0 | Found Exp. Targeting Computer 51422 | -1/Access_0 | Found Exp. Weapon Cycler 51441 | -1/Access_0 | Subspace Access Node disabled 51444 | -1/Access_0 | Architect warped through subspace 51468 | -1/Access_0 | Architect warped through subspace 51504 | -1/Access_0 | Architect warped through subspace 51540 | -1/Access_0 | Architect warped through subspace 51586 | -1/Access_0 | Architect warped through subspace 51627 | -1/Access_0 | Architect warped through subspace 51655 | -1/Access_0 | Architect warped through subspace 51683 | -1/Access_0 | Build established: Scavenger-Gunner 51683 | -1/Access_0 | Architect warped through subspace 51699 | -1/Access_0 | Found Exp. Targeting Computer 51701 | -1/Access_0 | Found Exp. Weapon Cycler 51722 | -1/Access_0 | Architect warped through subspace 51766 | -1/Access_0 | Architect warped through subspace 51788 | -1/Access_0 | Architect warped through subspace 51811 | -1/Access_0 | Architect warped through subspace 51851 | -1/Access_0 | Architect warped through subspace 51912 | -1/Access_0 | Architect warped through subspace 51945 | -1/Access_0 | Architect warped through subspace 51969 | -1/Access_0 | Warped through subspace to slip node 51969 | -1/Access_0 | Discovered new exit (range 8) 51970 | -1/Access_0 | Lost 3 parts (1n1u1w) 52012 | *** | Heading to fleet! Last Messages --------------- 51954_ Acquired 81 matter. 51956_ Acquired Exp. Power Amplifier. 51959_ System corrupted: Energy discharge (-98). 51964_ Penetrated by Quantum Shear. 51964_ Quantum Shear penetrates Wall. 51964_ Penetrated by Quantum Shear. 51969_ Centrium Leg+ severed. 51969_ Warped through subspace, drawn to slip node. 51969_ EXIT=FOUND 51971_ Dropped Neutron Cannon. 51971_ Dropped Hyp. Linear Accelerator. 51971_ A0_RES: I have more important things to do than play hide-and-seek. Deal with this piece of junk if it returns. 51972_ Dropped Hyp. Linear Accelerator. 51989_ Acquired Centrium Leg+. 51991_ Acquired Hyp. Linear Accelerator. 51993_ Acquired Neutron Cannon. 51995_ Acquired Hyp. Linear Accelerator. Map ----- +----------------------------------------------------+ | | | | | | | | | | | | | | | | | | | | | | | | | | | | | | | | | ?????????????????????????????????????????????????? | | ?????????????????????????????????????????????????? | | ?????????????????????????????????????????????????? | | ?????????????????????????????????????????????????? | | ?????????????????????????????????????????????????? | | ?????????????????????????????????????????????????? | | ????????????????????????###??????????????????????? | | ???????????????????????## ##?????????????????????? | | ???????????????????????# #?????????????????????? | | ???????????????????????# @ #?????????????????????? | | ??????????????????????## #?????????????????????? | | ??????????????????????# #?????????????????????? | | ??????????????????????# ##?????????????????????? | | ??????????????????????## #?????????????????????? | | ??????????????????????# #?????????????????????? | | ??????????????????????# ##?????????????????????? | | ??????????????????????# < #?????????????????????? | | ??????????????????????# ##?????????????????????? | | ??????????????????????## #??????????????????????? | | ???????????????????????####??????????????????????? | | ?????????????????????????????????????????????????? | | ?????????????????????????????????????????????????? | | ?????????????????????????????????????????????????? | | ?????????????????????????????????????????????????? | | ?????????????????????????????????????????????????? | | ?????????????????????????????????????????????????? | | ?????????????????????????????????????????????????? | | ?????????????????????????????????????????????????? | | ?????????????????????????????????????????????????? | | ?????????????????????????????????????????????????? | | ?????????????????????????????????????????????????? | | ?????????????????????????????????????????????????? | | ?????????????????????????????????????????????????? | | ?????????????????????????????????????????????????? | +----------------------------------------------------+ Best States ------------- Heat Dissipation 130 Coolant Potential 100 Energy Generation 72 Energy Capacity 800 Matter Stores 425 Matter Capacity 425 Sight Range 23 Robot Scan Range 19 Terrain Scan Range 24 Terrain Scan Density 10 ECM Strength 2 Cloak Strength 4 Power Amplification 40 Armor Coverage 2970 Resistance: KI 30 Resistance: TH 50 Resistance: EM 90 Weapon Shielding 90 Weapon Cycling 30 Phase Shifting 20 Evasion (%) 89 Targeting Accuracy 48 Target Analysis 10 Core Analysis 12 Recoil Reduction 7 Particle Charging 25 Kinecelleration 50 Salvage Targeting 12 Offensive Hacking 12 Defensive Hacking 20 Authchip Count 4 Trap Extractor Capacity 8 Item Schematics ----------------- Graviton Cannon | -2/Testing | Archive Hvy. Tesla Rifle | -2/Testing | Archive Tactical Quantum Warhead | -2/Testing | Archive Robot Schematics ------------------ A-15 Conveyor | -2/Testing | Archive S-43 Plague | -2/Testing | Archive Fabricated ------------ Deep Structural Scanner | x1 | -5/Factory | Authchip Adv. Force Field | x2 | -4/Factory | Preloaded Repaired ---------- Hvy. Armored Exoskeleton | 71% | -3/Quarantine Studied --------- Hvy. Armored Exoskeleton | -2/Research | Hacked Centrium Leg | -2/Testing | Hacked Railgun | -2/Testing | Hacked Hvy. Shield Leg | -1/Access | Hacked Alien Tech Used ----------------- Integrated Dissipator Sigix Broadsword Dimensional Node Initializer Phase Armor Core Reset Matrix Integrated Thermoelectric Network Sigix Sheargun LRC Matter Compressor LRC Inertial Stabilizer Integrity Redistributor Transdimensional Reconstructor Sigix Shearcannon Subatomic Replicator High-powered Transdimensional Reconstructor Achievements -------------- None Challenges ------------ None Game ------ Seed LobotomyBarrageArmor Manual? 1 Play Time 08:06:27 Cumulative 989.4 hours Start 2026.08.04 @ 03:24:46 End 2026.08.05 @ 03:57:33 Sessions 5 Manual Loads 0 Difficulty Rogue Special Mode None Game No. 272 Rogue 272 Adventurer 0 Explorer 0 Win Type 2 Total 42 Types 12/9/10/1/2/0/4/1/1/2 Lore% 97 Gallery% 91 Achievement% 86 Wizard Run 0 Options --------- Layout 1 ASCII 0 Keyboard 0 Movement Mouse Keybinds 0 Fullscreen 2 Font 32/SmallcapsGlow Map View 50x35 Zoom Use 0% Tactical HUD 1 Map Filters NONE Filters NONE Steam 1 RUN: 97206a14-79f4-488c-a803-93248bdbcbe0